Workbook

Sheet Front Sheet
F7: Electricity Network Innovation Competition Full Submission
F8: Spreadsheet
F10: (2018 version 1.0)
F11: Appendix A
C15: Licensee Name: | D15: London Power Networks plc
C17: Submission Date: | D17: 2018-10-19
B21: Input cells
B22: Totals cells (of formula within worksheet)
B23: Referencing to other worksheets
B24: Check cells
B25: No Input
B26: Descriptions and pack data
B27: Ofgem Input cells

Sheet NIC Funding Request
A1: NIC Funding Request
C2: 2018/19 | D2: 2019/20 | E2: 2020/21 | F2: 2021/22 | G2: 2022/23 | H2: 2023/24 | I2: 2024/25 | J2: 2025/26 | K2: Total
A3: Total Project Cost | B3: From Project Cost Summary sheet
B4: Labour | C4: ='[2]Project Cost Summary'!C22 -> 125.9 | D4: ='[2]Project Cost Summary'!C39 -> 501.06 | E4: ='[2]Project Cost Summary'!C56 -> 493.05 | F4: ='[2]Project Cost Summary'!C73 -> 418.41 | G4: ='Project Cost Summary'!C90 -> 0 | H4: ='Project Cost Summary'!D90 -> 0 | I4: ='Project Cost Summary'!E90 -> 0 | J4: ='Project Cost Summary'!F90 -> 0 | K4: 1538.42
B5: Equipment | C5: ='[2]Project Cost Summary'!D22 -> 0 | D5: ='[2]Project Cost Summary'!D39 -> 3639.5 | E5: ='[2]Project Cost Summary'!D56 -> 9018.52 | F5: ='[2]Project Cost Summary'!D73 -> 0 | G5: ='Project Cost Summary'!D90 -> 0 | H5: ='Project Cost Summary'!E90 -> 0 | I5: ='Project Cost Summary'!F90 -> 0 | J5: ='Project Cost Summary'!G90 -> 0 | K5: 12658.02
B6: Contractors | C6: ='[2]Project Cost Summary'!E22 -> 1059.4 | D6: ='[2]Project Cost Summary'!E39 -> 4236.15 | E6: ='[2]Project Cost Summary'!E56 -> 4158.41 | F6: ='[2]Project Cost Summary'!E73 -> 2911.41 | G6: ='Project Cost Summary'!E90 -> 0 | H6: ='Project Cost Summary'!F90 -> 0 | I6: ='Project Cost Summary'!G90 -> 0 | J6: ='Project Cost Summary'!H90 -> 0 | K6: 12365.37
B7: IT | C7: ='[2]Project Cost Summary'!F22 -> 224 | D7: ='[2]Project Cost Summary'!F39 -> 3098.89 | E7: ='[2]Project Cost Summary'!F56 -> 2456.23 | F7: ='[2]Project Cost Summary'!F73 -> 1196.13 | G7: ='Project Cost Summary'!F90 -> 0 | H7: ='Project Cost Summary'!G90 -> 0 | I7: ='Project Cost Summary'!H90 -> 0 | J7: ='Project Cost Summary'!I90 -> 0 | K7: 6975.25
B8: IPR Costs | C8: ='[2]Project Cost Summary'!G22 -> 0 | D8: ='[2]Project Cost Summary'!G39 -> 0 | E8: ='[2]Project Cost Summary'!G56 -> 0 | F8: ='[2]Project Cost Summary'!G73 -> 0 | G8: ='Project Cost Summary'!G90 -> 0 | H8: ='Project Cost Summary'!H90 -> 0 | I8: ='Project Cost Summary'!I90 -> 0 | J8: ='Project Cost Summary'!J90 -> 0 | K8: 0
B9: Travel & Expenses | C9: ='[2]Project Cost Summary'!H22 -> 1.19 | D9: ='[2]Project Cost Summary'!H39 -> 6.54 | E9: ='[2]Project Cost Summary'!H56 -> 5.94 | F9: ='[2]Project Cost Summary'!H73 -> 5.45 | G9: ='Project Cost Summary'!H90 -> 0 | H9: ='Project Cost Summary'!I90 -> 0 | I9: ='Project Cost Summary'!J90 -> 0 | J9: ='Project Cost Summary'!K90 -> 0 | K9: 19.12
A10: Payments to users & Contingency | C10: ='[2]Project Cost Summary'!I22+'[2]Project Cost Summary'!J22 -> 0 | D10: ='[2]Project Cost Summary'!I39+'[2]Project Cost Summary'!J39 -> 0 | E10: ='[2]Project Cost Summary'!I56+'[2]Project Cost Summary'!J56 -> 0 | F10: ='[2]Project Cost Summary'!I73+'[2]Project Cost Summary'!J73 -> 0 | G10: ='Project Cost Summary'!I90+'Project Cost Summary'!J90 -> 0 | H10: ='Project Cost Summary'!J90+'Project Cost Summary'!K90 -> 0 | I10: ='Project Cost Summary'!K90+'Project Cost Summary'!L90 -> 0 | J10: ='Project Cost Summary'!L90+'Project Cost Summary'!M90 -> 0 | K10: 0
B11: Decommissioning | C11: ='[2]Project Cost Summary'!K22 -> 0 | D11: ='[2]Project Cost Summary'!K39 -> 0 | E11: ='[2]Project Cost Summary'!K56 -> 0 | F11: ='[2]Project Cost Summary'!K73 -> 0 | G11: ='Project Cost Summary'!K90 -> 0 | H11: ='Project Cost Summary'!L90 -> 0 | I11: ='Project Cost Summary'!M90 -> 0 | J11: ='Project Cost Summary'!N90 -> 0 | K11: 0
B12: Other | C12: ='[2]Project Cost Summary'!L22 -> 8 | D12: ='[2]Project Cost Summary'!L39 -> 12 | E12: ='[2]Project Cost Summary'!L56 -> 646.41 | F12: ='[2]Project Cost Summary'!L73 -> 468.27 | G12: ='Project Cost Summary'!L90 -> 0 | H12: ='Project Cost Summary'!M90 -> 0 | I12: ='Project Cost Summary'!N90 -> 0 | J12: ='Project Cost Summary'!O90 -> 0 | K12: 1134.68
B13: Total | C13: =SUM(C4:C12) -> 1418.49 | D13: 11494.14 | E13: 16778.56 | F13: 4999.67 | G13: =SUM(G4:G12) -> 0 | H13: =SUM(H4:H12) -> 0 | I13: 0 | J13: 0 | K13: 34690.86
A15: External funding | B15: Any funding that will be received from Project Partners and/or External Funders - from Project Cost Summary sheet
B16: Labour | C16: ='[2]Project Cost Summary'!C30 -> 3.825 | D16: ='[2]Project Cost Summary'!C47 -> 14.77 | E16: ='[2]Project Cost Summary'!C64 -> 14.576 | F16: ='[2]Project Cost Summary'!C81 -> 12.783 | G16: ='Project Cost Summary'!C98 -> 0 | H16: ='Project Cost Summary'!D98 -> 0 | I16: ='Project Cost Summary'!E98 -> 0 | J16: ='Project Cost Summary'!F98 -> 0 | K16: 45.954
B17: Equipment | C17: ='[2]Project Cost Summary'!D30 -> 0 | D17: ='[2]Project Cost Summary'!D47 -> 2889.5 | E17: ='[2]Project Cost Summary'!D64 -> 8568.52 | F17: ='[2]Project Cost Summary'!D81 -> 0 | G17: ='Project Cost Summary'!D98 -> 0 | H17: ='Project Cost Summary'!E98 -> 0 | I17: ='Project Cost Summary'!F98 -> 0 | J17: ='Project Cost Summary'!G98 -> 0 | K17: 11458.02
B18: Contractors | C18: ='[2]Project Cost Summary'!E30 -> 249.4832 | D18: ='[2]Project Cost Summary'!E47 -> 1006.772 | E18: ='[2]Project Cost Summary'!E64 -> 1046.968 | F18: ='[2]Project Cost Summary'!E81 -> 706.7464 | G18: ='Project Cost Summary'!E98 -> 0 | H18: ='Project Cost Summary'!F98 -> 0 | I18: ='Project Cost Summary'!G98 -> 0 | J18: ='Project Cost Summary'!H98 -> 0 | K18: 3009.9696
B19: IT | C19: ='[2]Project Cost Summary'!F30 -> 22.4 | D19: ='[2]Project Cost Summary'!F47 -> 420.711 | E19: ='[2]Project Cost Summary'!F64 -> 908.6611 | F19: ='[2]Project Cost Summary'!F81 -> 374.6004 | G19: ='Project Cost Summary'!F98 -> 0 | H19: ='Project Cost Summary'!G98 -> 0 | I19: ='Project Cost Summary'!H98 -> 0 | J19: ='Project Cost Summary'!I98 -> 0 | K19: 1726.3725
B20: IPR Costs | C20: ='[2]Project Cost Summary'!G30 -> 0 | D20: ='[2]Project Cost Summary'!G47 -> 0 | E20: ='[2]Project Cost Summary'!G64 -> 0 | F20: ='[2]Project Cost Summary'!G81 -> 0 | G20: ='Project Cost Summary'!G98 -> 0 | H20: ='Project Cost Summary'!H98 -> 0 | I20: ='Project Cost Summary'!I98 -> 0 | J20: ='Project Cost Summary'!J98 -> 0 | K20: 0
B21: Travel & Expenses | C21: ='[2]Project Cost Summary'!H30 -> 0 | D21: ='[2]Project Cost Summary'!H47 -> 0.27 | E21: ='[2]Project Cost Summary'!H64 -> 0.24 | F21: ='[2]Project Cost Summary'!H81 -> 0.22 | G21: ='Project Cost Summary'!H98 -> 0 | H21: ='Project Cost Summary'!I98 -> 0 | I21: ='Project Cost Summary'!J98 -> 0 | J21: ='Project Cost Summary'!K98 -> 0 | K21: 0.73
A22: Payments to users & Contingency | C22: ='[2]Project Cost Summary'!I30+'[2]Project Cost Summary'!J30 -> 0 | D22: ='[2]Project Cost Summary'!I47+'[2]Project Cost Summary'!J47 -> 0 | E22: ='[2]Project Cost Summary'!I64+'[2]Project Cost Summary'!J64 -> 0 | F22: ='[2]Project Cost Summary'!I81+'[2]Project Cost Summary'!J81 -> 0 | G22: ='Project Cost Summary'!I98+'Project Cost Summary'!K98 -> 0 | H22: ='Project Cost Summary'!J98+'Project Cost Summary'!L98 -> 0 | I22: ='Project Cost Summary'!K98+'Project Cost Summary'!M98 -> 0 | J22: ='Project Cost Summary'!L98+'Project Cost Summary'!N98 -> 0 | K22: 0
B23: Decommissioning | C23: ='[2]Project Cost Summary'!K30 -> 0 | D23: ='[2]Project Cost Summary'!K47 -> 0 | E23: ='[2]Project Cost Summary'!K64 -> 0 | F23: ='[2]Project Cost Summary'!K81 -> 0 | G23: ='Project Cost Summary'!K98 -> 0 | H23: ='Project Cost Summary'!L98 -> 0 | I23: ='Project Cost Summary'!M98 -> 0 | J23: ='Project Cost Summary'!N98 -> 0 | K23: 0
B24: Other | C24: ='[2]Project Cost Summary'!L30 -> 0 | D24: ='[2]Project Cost Summary'!L47 -> 0 | E24: ='[2]Project Cost Summary'!L64 -> 0 | F24: ='[2]Project Cost Summary'!L81 -> 0 | G24: ='Project Cost Summary'!L98 -> 0 | H24: ='Project Cost Summary'!M98 -> 0 | I24: ='Project Cost Summary'!N98 -> 0 | J24: ='Project Cost Summary'!O98 -> 0 | K24: 0
B25: Total | C25: =SUM(C16:C24) -> 275.7082 | D25: 4332.023 | E25: 10538.9651 | F25: 1094.3498 | G25: =SUM(G16:G24) -> 0 | H25: =SUM(H16:H24) -> 0 | I25: 0 | J25: 0 | K25: 16241.0461
A27: Licensee extra contribution | B27: Any funding from the Licensee which is in excess of the Licensee Compulsory Contribution - from Project Cost Summary sheet
B28: Labour | C28: ='[2]Project Cost Summary'!C31 -> 0 | D28: ='[2]Project Cost Summary'!C48 -> 0 | E28: ='[2]Project Cost Summary'!C65 -> 0 | F28: ='[2]Project Cost Summary'!C82 -> 0 | G28: ='Project Cost Summary'!C99 -> 0 | H28: ='Project Cost Summary'!D99 -> 0 | I28: ='Project Cost Summary'!E99 -> 0 | J28: ='Project Cost Summary'!F99 -> 0 | K28: 0
B29: Equipment | C29: ='[2]Project Cost Summary'!D31 -> 0 | D29: ='[2]Project Cost Summary'!D48 -> 0 | E29: ='[2]Project Cost Summary'!D65 -> 0 | F29: ='[2]Project Cost Summary'!D82 -> 0 | G29: ='Project Cost Summary'!D99 -> 0 | H29: ='Project Cost Summary'!E99 -> 0 | I29: ='Project Cost Summary'!F99 -> 0 | J29: ='Project Cost Summary'!G99 -> 0 | K29: 0
B30: Contractors | C30: ='[2]Project Cost Summary'!E31 -> 0 | D30: ='[2]Project Cost Summary'!E48 -> 0 | E30: ='[2]Project Cost Summary'!E65 -> 0 | F30: ='[2]Project Cost Summary'!E82 -> 0 | G30: ='Project Cost Summary'!E99 -> 0 | H30: ='Project Cost Summary'!F99 -> 0 | I30: ='Project Cost Summary'!G99 -> 0 | J30: ='Project Cost Summary'!H99 -> 0 | K30: 0
B31: IT | C31: ='[2]Project Cost Summary'!F31 -> 0 | D31: ='[2]Project Cost Summary'!F48 -> 0 | E31: ='[2]Project Cost Summary'!F65 -> 0 | F31: ='[2]Project Cost Summary'!F82 -> 0 | G31: ='Project Cost Summary'!E99 -> 0 | H31: ='Project Cost Summary'!F99 -> 0 | I31: ='Project Cost Summary'!G99 -> 0 | J31: ='Project Cost Summary'!H99 -> 0 | K31: 0
B32: IPR Costs | C32: ='[2]Project Cost Summary'!G31 -> 0 | D32: ='[2]Project Cost Summary'!G48 -> 0 | E32: ='[2]Project Cost Summary'!G65 -> 0 | F32: ='[2]Project Cost Summary'!G82 -> 0 | G32: ='Project Cost Summary'!F99 -> 0 | H32: ='Project Cost Summary'!G99 -> 0 | I32: ='Project Cost Summary'!H99 -> 0 | J32: ='Project Cost Summary'!I99 -> 0 | K32: 0
B33: Travel & Expenses | C33: ='[2]Project Cost Summary'!H31 -> 0 | D33: ='[2]Project Cost Summary'!H48 -> 0 | E33: ='[2]Project Cost Summary'!H65 -> 0 | F33: ='[2]Project Cost Summary'!H82 -> 0 | G33: ='Project Cost Summary'!G99 -> 0 | H33: ='Project Cost Summary'!H99 -> 0 | I33: ='Project Cost Summary'!I99 -> 0 | J33: ='Project Cost Summary'!J99 -> 0 | K33: 0
A34: Payments to users & Contingency | C34: ='[2]Project Cost Summary'!I31+'[2]Project Cost Summary'!J31 -> 0 | D34: ='[2]Project Cost Summary'!I48+'[2]Project Cost Summary'!J48 -> 0 | E34: ='[2]Project Cost Summary'!I65+'[2]Project Cost Summary'!J65 -> 0 | F34: ='[2]Project Cost Summary'!I82 -> 0 | G34: ='Project Cost Summary'!I99+'Project Cost Summary'!J99 -> 0 | H34: ='Project Cost Summary'!J99+'Project Cost Summary'!K99 -> 0 | I34: ='Project Cost Summary'!K99+'Project Cost Summary'!L99 -> 0 | J34: ='Project Cost Summary'!L99+'Project Cost Summary'!M99 -> 0 | K34: 0
B35: Decommissioning | C35: ='[2]Project Cost Summary'!K31 -> 0 | D35: ='[2]Project Cost Summary'!K48 -> 0 | E35: ='[2]Project Cost Summary'!K65 -> 0 | F35: ='[2]Project Cost Summary'!K82 -> 0 | G35: ='Project Cost Summary'!K99 -> 0 | H35: ='Project Cost Summary'!L99 -> 0 | I35: ='Project Cost Summary'!M99 -> 0 | J35: ='Project Cost Summary'!N99 -> 0 | K35: 0
B36: Other | C36: ='[2]Project Cost Summary'!L31 -> 0 | D36: ='[2]Project Cost Summary'!L48 -> 0 | E36: ='[2]Project Cost Summary'!L65 -> 0 | F36: ='[2]Project Cost Summary'!L82 -> 0 | G36: ='Project Cost Summary'!L99 -> 0 | H36: ='Project Cost Summary'!M99 -> 0 | I36: ='Project Cost Summary'!N99 -> 0 | J36: ='Project Cost Summary'!O99 -> 0 | K36: 0
B37: Total | C37: =SUM(C28:C36) -> 0 | D37: 0 | E37: 0 | F37: 0 | G37: =SUM(G28:G36) -> 0 | H37: =SUM(H28:H36) -> 0 | I37: 0 | J37: 0 | K37: 0
A39: Initial Net Funding Required
B40: Labour | C40: =C4-C16-C28 -> 122.075 | D40: 486.29 | E40: 478.474 | F40: 405.627 | G40: =G4-G16-G28 -> 0 | H40: =H4-H16-H28 -> 0 | I40: 0 | J40: 0 | K40: 1492.466
B41: Equipment | C41: 0 | D41: 750 | E41: 450 | F41: 0 | G41: =G5-G17-G29 -> 0 | H41: =H5-H17-H29 -> 0 | I41: 0 | J41: 0 | K41: 1200
B42: Contractors | C42: 809.9168 | D42: 3229.378 | E42: 3111.442 | F42: 2204.6636 | G42: =G6-G18-G30 -> 0 | H42: =H6-H18-H30 -> 0 | I42: 0 | J42: 0 | K42: 9355.4004
B43: IT | C43: 201.6 | D43: 2678.179 | E43: 1547.5689 | F43: 821.5296 | G43: =G7-G19-G31 -> 0 | H43: =H7-H19-H31 -> 0 | I43: 0 | J43: 0 | K43: 5248.8775
B44: IPR Costs | C44: 0 | D44: 0 | E44: 0 | F44: 0 | G44: =G8-G20-G32 -> 0 | H44: =H8-H20-H32 -> 0 | I44: 0 | J44: 0 | K44: 0
B45: Travel & Expenses | C45: 1.19 | D45: 6.27 | E45: 5.7 | F45: 5.23 | G45: =G9-G21-G33 -> 0 | H45: =H9-H21-H33 -> 0 | I45: 0 | J45: 0 | K45: 18.39
A46: Payments to users & Contingency | C46: 0 | D46: 0 | E46: 0 | F46: 0 | G46: =G10-G22-G34 -> 0 | H46: =H10-H22-H34 -> 0 | I46: 0 | J46: 0 | K46: 0
B47: Decommissioning | C47: 0 | D47: 0 | E47: 0 | F47: 0 | G47: =G11-G23-G35 -> 0 | H47: =H11-H23-H35 -> 0 | I47: 0 | J47: 0 | K47: 0 | L47: Check Total = to Initial Net Funding request
B48: Other | C48: 8 | D48: 12 | E48: 646.41 | F48: 468.27 | G48: =G12-G24-G36 -> 0 | H48: =H12-H24-H36 -> 0 | I48: 0 | J48: 0 | K48: 1134.68 | L48: in Project Cost Summary
B49: Total | C49: 1142.7818 | D49: 7162.117 | E49: 6239.5949 | F49: 3905.3202 | G49: =G13-G25-G37 -> 0 | H49: =H13-H25-H37 -> 0 | I49: 0 | J49: 0 | K49: 18449.8139 | L49: =IF(K49='Project Cost Summary'!M15,"OK","ERROR") -> ERROR
A51: Direct Benefits | B51: from Direct Benefits sheet
B52: Total | C52: ='[2]Direct Benefits'!D11 -> 0 | D52: ='[2]Direct Benefits'!E11 -> 0 | E52: ='[2]Direct Benefits'!F11 -> 0 | F52: ='[2]Direct Benefits'!G11 -> 0 | G52: ='Direct Benefits'!K11 -> 0 | H52: ='Direct Benefits'!L11 -> 0 | I52: ='Direct Benefits'!M11 -> 0 | J52: ='Direct Benefits'!N11 -> 0 | K52: =SUM(C52:J52) -> 0
A56: Licensee Compulsory Contribution / Direct Benefits | C56: from Project Cost Summary sheet
B57: Labour | C57: ='[2]Project Cost Summary'!C33 -> 14.8259975 | D57: ='[2]Project Cost Summary'!C50 -> 142.059554 | E57: ='[2]Project Cost Summary'!C67 -> 179.236369 | F57: ='[2]Project Cost Summary'!C84 -> 149.968338 | G57: ='Project Cost Summary'!C101 -> 0 | H57: ='Project Cost Summary'!D101 -> 0 | I57: ='Project Cost Summary'!E101 -> 0 | J57: ='Project Cost Summary'!F101 -> 0 | K57: 486.0902585
B58: Equipment | C58: ='[2]Project Cost Summary'!D33 -> 0 | D58: ='[2]Project Cost Summary'!D50 -> 0 | E58: ='[2]Project Cost Summary'!D67 -> 0 | F58: ='[2]Project Cost Summary'!D84 -> 0 | G58: ='Project Cost Summary'!D101 -> 0 | H58: ='Project Cost Summary'!E101 -> 0 | I58: ='Project Cost Summary'!F101 -> 0 | J58: ='Project Cost Summary'!G101 -> 0 | K58: 0
B59: Contractors | C59: ='[2]Project Cost Summary'!E33 -> 0 | D59: ='[2]Project Cost Summary'!E50 -> 0 | E59: ='[2]Project Cost Summary'!E67 -> 0 | F59: ='[2]Project Cost Summary'!E84 -> 0 | G59: ='Project Cost Summary'!E101 -> 0 | H59: ='Project Cost Summary'!F101 -> 0 | I59: ='Project Cost Summary'!G101 -> 0 | J59: ='Project Cost Summary'!H101 -> 0 | K59: 0
B60: IT | C60: ='[2]Project Cost Summary'!F33 -> 33.6 | D60: ='[2]Project Cost Summary'!F50 -> 713.04594 | E60: ='[2]Project Cost Summary'!F67 -> 11.61225 | F60: ='[2]Project Cost Summary'!F84 -> 14.19275 | G60: ='Project Cost Summary'!F101 -> 0 | H60: ='Project Cost Summary'!G101 -> 0 | I60: ='Project Cost Summary'!H101 -> 0 | J60: ='Project Cost Summary'!I101 -> 0 | K60: 772.45094
B61: IPR Costs | C61: ='[2]Project Cost Summary'!G33 -> 0 | D61: ='[2]Project Cost Summary'!G50 -> 0 | E61: ='[2]Project Cost Summary'!G67 -> 0 | F61: ='[2]Project Cost Summary'!G84 -> 0 | G61: ='Project Cost Summary'!G101 -> 0 | H61: ='Project Cost Summary'!H101 -> 0 | I61: ='Project Cost Summary'!I101 -> 0 | J61: ='Project Cost Summary'!J101 -> 0 | K61: 0
B62: Travel & Expenses | C62: ='[2]Project Cost Summary'!H33 -> 0.2012885 | D62: ='[2]Project Cost Summary'!H50 -> 1.543776 | E62: ='[2]Project Cost Summary'!H67 -> 1.826994 | F62: ='[2]Project Cost Summary'!H84 -> 1.677325 | G62: ='Project Cost Summary'!H101 -> 0 | H62: ='Project Cost Summary'!I101 -> 0 | I62: ='Project Cost Summary'!J101 -> 0 | J62: ='Project Cost Summary'!K101 -> 0 | K62: 5.2493835
A63: Payments to users & Contingency | C63: ='[2]Project Cost Summary'!I33+'[2]Project Cost Summary'!J33 -> 0 | D63: ='[2]Project Cost Summary'!I50+'[2]Project Cost Summary'!J50 -> 0 | E63: ='[2]Project Cost Summary'!I67+'[2]Project Cost Summary'!J67 -> 0 | F63: ='[2]Project Cost Summary'!I84+'[2]Project Cost Summary'!J84 -> 0 | G63: ='Project Cost Summary'!I101+'Project Cost Summary'!J101 -> 0 | H63: ='Project Cost Summary'!J101+'Project Cost Summary'!K101 -> 0 | I63: ='Project Cost Summary'!K101+'Project Cost Summary'!L101 -> 0 | J63: ='Project Cost Summary'!L101+'Project Cost Summary'!M101 -> 0 | K63: 0
B64: Decommissioning | C64: ='[2]Project Cost Summary'!K33 -> 0 | D64: ='[2]Project Cost Summary'!K50 -> 0 | E64: ='[2]Project Cost Summary'!K67 -> 0 | F64: ='[2]Project Cost Summary'!K84 -> 0 | G64: ='Project Cost Summary'!K101 -> 0 | H64: ='Project Cost Summary'!L101 -> 0 | I64: ='Project Cost Summary'!M101 -> 0 | J64: ='Project Cost Summary'!N101 -> 0 | K64: 0 | L64: of Total Initial Net Funding Required
B65: Other | C65: ='[2]Project Cost Summary'!L33 -> 1.3532 | D65: ='[2]Project Cost Summary'!L50 -> 4.8243 | E65: ='[2]Project Cost Summary'!L67 -> 333.612201 | F65: ='[2]Project Cost Summary'!L84 -> 241.674147 | G65: ='Project Cost Summary'!L101 -> 0 | H65: ='Project Cost Summary'!M101 -> 0 | I65: ='Project Cost Summary'!N101 -> 0 | J65: ='Project Cost Summary'!O101 -> 0 | K65: 581.463848 | L65: =IF(K66>=K49*0.1,"OK","ERROR") -> OK
B66: Total | C66: =SUM(C57:C65) -> 49.980486 | D66: 861.47357 | E66: 526.287814 | F66: 407.51256 | G66: =SUM(G57:G65) -> 0 | H66: =SUM(H57:H65) -> 0 | I66: 0 | J66: 0 | K66: 1845.25443 | L66: Check that Total is = or > than
L67: Total Direct Benefits
L68: =IF(K66>=K52,"OK","ERROR") -> OK
A69: Outstanding Funding required
B70: Labour | C70: =C40-C57 -> 107.2490025 | D70: 344.230446 | E70: 299.237631 | F70: 255.658662 | G70: =G40-G57 -> 0 | H70: 0 | I70: 0 | J70: 0 | K70: 1006.375742
B71: Equipment | C71: 0 | D71: 750 | E71: 450 | F71: 0 | G71: 0 | H71: 0 | I71: 0 | J71: 0 | K71: 1200
B72: Contractors | C72: 809.9168 | D72: 3229.378 | E72: 3111.442 | F72: 2204.6636 | G72: 0 | H72: 0 | I72: 0 | J72: 0 | K72: 9355.4004
B73: IT | C73: 168 | D73: 1965.13306 | E73: 1535.95665 | F73: 807.33685 | G73: 0 | H73: 0 | I73: 0 | J73: 0 | K73: 4476.42656
B74: IPR Costs | C74: 0 | D74: 0 | E74: 0 | F74: 0 | G74: 0 | H74: 0 | I74: 0 | J74: 0 | K74: 0
B75: Travel & Expenses | C75: 0.9887115 | D75: 4.726224 | E75: 3.873006 | F75: 3.552675 | G75: 0 | H75: 0 | I75: 0 | J75: 0 | K75: 13.1406165
A76: Payments to users & Contingency | C76: 0 | D76: 0 | E76: 0 | F76: 0 | G76: 0 | H76: 0 | I76: 0 | J76: 0 | K76: 0
B77: Decommissioning | C77: 0 | D77: 0 | E77: 0 | F77: 0 | G77: 0 | H77: 0 | I77: 0 | J77: 0 | K77: 0 | L77: Check that Total is =to
B78: Other | C78: 6.6468 | D78: 7.1757 | E78: 312.797799 | F78: 226.595853 | G78: 0 | H78: 0 | I78: 0 | J78: 0 | K78: 553.216152 | L78: Total Outstanding Funding required
B79: Total | C79: 1092.801314 | D79: 6300.64343 | E79: 5713.307086 | F79: 3497.80764 | G79: 0 | H79: 0 | I79: 0 | J79: 0 | K79: 16604.55947 | L79: =IF(K79='Project Cost Summary'!M17, "OK","ERROR") -> ERROR
A81: balance | B81: 16398.49767 | C81: 0 | D81: =B81-C79-D79 -> 9005.052926 | E81: =D81-E79+D82 -> 3418.763593 | F81: =E81-F79+E82 -> -16.92496444 | G81: =F81-G79+F82 -> 0.08422870681 | H81: =G81-H79+G82 -> 2.502816271e-05 | I81: 0.0004462968376 | J81: 0.0004486534626 | K81: =G81-G79+G82 -> 2.502816271e-05 | L81: =B81 -> 16398.49767
A82: interest | C82: 0 | D82: =((B81+D81)/2)*$D86 -> 127.017753 | E82: =((D81+E81)/2)*$D86 -> 62.11908259 | F82: =((E81+F81)/2)*$D86 -> 17.00919314 | G82: =((F81+G81)/2)*$D86 -> -0.08420367865 | H82: =((G81+H81)/2)*$D86 -> 0.0004212686749 | I82: 2.356625001e-06 | J82: 4.474751501e-06 | K82: =((G81+K81)/2)*$D86 -> 0.0004212686749 | L82: =SUM(D82:K82) -> 206.0626744
L83: =L81+L82 -> 16604.56034 | M83: =K79-L83 -> -0.0008743968901
B85: Bank of England interest rate | D85: 0.005 | G85: NIC FUNDING REQUEST £ | L85: =L81 -> 16398.49767
B86: interest rate used in calculation | D86: =D85+0.5% -> 0.01
B87: RPI adjustment | C87: 2018/19 | D87: 2019/20 | E87: 2020/21 | F87: 2021/22 | G87: 2022/23 | H87: 2023/24 | I87: 2024/25 | J87: 2025/26
B88: Annual inflation | C88: 0.033 | D88: 0.03 | E88: 0.0305 | F88: 0.032 | G88: 0.032 | H88: 0.032 | I88: 0.032 | J88: 0.032
A89: n.b the NIC Funding Request calculation should use the Bank of England Base rate plus 0.5% on 30 June of the year in which the Full Submission is made.
D92: Bank of England Base Rate: https://www.bankofengland.co.uk/boeapps/iadb/Repo.asp
D93: RPI Forecast 2018/19-202223: https://www.gov.uk/government/statistics/forecasts-for-the-uk-economy-may-2018
D94: RPI for 2023/24 and thereafter is an extension from 2022/23 as no further consistent forecast is available.

Sheet Direct Benefits
A1: Direct Benefits
A3: Direct Benefit: Any benefits of the Project accruing to the Licensee during the Project Implementation, comprising any expenditure included within the Network Lincesee Business plan for RIIO-T1 or ED1 that will be saved as a result of undertaking the project
B7: Description of Direct Benefit
C8: 2017/18 | D8: 2018/19 | E8: 2019/20 | F8: 2020/21 | G8: 2021/22 | H8: 2022/23 | I8: 2023/24 | J8: 2024/25 | K8: 2025/26 | L8: Total
L9: =SUM(C9:K9) -> 0
L10: =SUM(C10:K10) -> 0
B11: Total Direct Benefits | C11: =SUM(C9:C10) -> 0 | D11: 0 | E11: 0 | F11: 0 | G11: 0 | H11: 0 | I11: 0 | J11: 0 | K11: 0 | L11: 0
B14: n.b. These are Direct Benefits associated with the Project itself, not the wider deployment of the Solution and therefore should not extend beyond the Project period.

Sheet Project Cost Summary
A1: Project Cost Summary
C2: Total
C3: Cost type
C4: Labour | D4: Equipment | E4: Contractors | F4: IT | G4: IPR Costs | H4: Travel & Expenses | I4: Payments to users | J4: Contingency | K4: Decommissioning | L4: Other | M4: Total
B5: Total Project Cost | M5: =SUM(C5:L5) -> 0
B6: Hitachi Vantara | M6: =SUM(C6:L6) -> 0
B7: Hitachi Europe | M7: 0
B8: Hitachi Capital | M8: 0
B9: Royal Mail | M9: 0
B10: Centrica | M10: 0
B11: Uber | M11: 0
B12: SSEN | M12: 0
B13: External Funding | M13: =SUM(C13:L13) -> 0
B14: Licensee extra contribution | M14: 0
B15: Initial Net Funding Required | M15: 0 | O15: Check Total Initial Net Funding Required matches that on the Second Tier Funding Request tab
B16: Licensee Compulsory Contribution / Direct Benefits | M16: 0 | O16: =IF(ABS(M15-'NIC Funding Request'!K49)<0.01,"OK","ERROR") -> ERROR
B17: Outstanding Funding Required | M17: =SUM(C17:L17) -> 0
C19: 2018/19
C20: Cost type
C21: Labour | D21: Equipment | E21: Contractors | F21: IT | G21: IPR Costs | H21: Travel & Expenses | I21: Payments to users | J21: Contingency | K21: Decommissioning | L21: Other | M21: Total
B22: Total Project Cost | M22: =SUM(C22:L22) -> 0
B23: Hitachi Vantara | M23: 0
B24: Hitachi Europe | M24: 0
B25: Hitachi Capital | M25: 0
B26: Royal Mail | M26: 0
B27: Centrica | M27: 0
B28: Uber | M28: 0
B29: SSEN | M29: 0
B30: External Funding | M30: =SUM(C30:L30) -> 0
B31: Licensee extra contribution | M31: 0
B32: Initial Net Funding Required | M32: 0
B33: Licensee Compulsory Contribution / Direct Benefits | M33: 0
B34: Outstanding Funding Required | M34: 0
C36: 2019/20
C37: Cost type
C38: Labour | D38: Equipment | E38: Contractors | F38: IT | G38: IPR Costs | H38: Travel & Expenses | I38: Payments to users | J38: Contingency | K38: Decommissioning | L38: Other | M38: Total
B39: Total Project Cost
B40: Hitachi Vantara
B41: Hitachi Europe
B42: Hitachi Capital
B43: Royal Mail
B44: Centrica
B45: Uber
B46: SSEN
B47: External Funding
B48: Licensee extra contribution
B49: Initial Net Funding Required
B50: Licensee Compulsory Contribution / Direct Benefits
B51: Outstanding Funding Required
C53: 2020/21
C54: Cost type
C55: Labour | D55: Equipment | E55: Contractors | F55: IT | G55: IPR Costs | H55: Travel & Expenses | I55: Payments to users | J55: Contingency | K55: Decommissioning | L55: Other | M55: Total
B56: Total Project Cost
B57: Hitachi Vantara
B58: Hitachi Europe
B59: Hitachi Capital
B60: Royal Mail
B61: Centrica
B62: Uber
B63: SSEN
B64: External Funding
B65: Licensee extra contribution
B66: Initial Net Funding Required
B67: Licensee Compulsory Contribution / Direct Benefits
B68: Outstanding Funding Required
C70: 2021/22
C71: Cost type
C72: Labour | D72: Equipment | E72: Contractors | F72: IT | G72: IPR Costs | H72: Travel & Expenses | I72: Payments to users | J72: Contingency | K72: Decommissioning | L72: Other | M72: Total
B73: Total Project Cost
B74: Hitachi Vantara
B75: Hitachi Europe
B76: Hitachi Capital
B77: Royal Mail
B78: Centrica
B79: Uber
B80: SSEN
B81: External Funding
B82: Licensee extra contribution
B83: Initial Net Funding Required
B84: Licensee Compulsory Contribution
B85: Outstanding Funding Required
C87: 2022/23
C88: Cost type
C89: Labour | D89: Equipment | E89: Contractors | F89: IT | G89: IPR Costs | H89: Travel & Expenses | I89: Payments to users | J89: Contingency | K89: Decommissioning | L89: Other | M89: Total
B90: Total Project Cost | C90: ='2022-2023'!G96 -> 0 | D90: ='2022-2023'!H96 -> 0 | E90: ='2022-2023'!I96 -> 0 | F90: ='2022-2023'!J96 -> 0 | G90: ='2022-2023'!K96 -> 0 | H90: ='2022-2023'!L96 -> 0 | I90: ='2022-2023'!M96 -> 0 | J90: ='2022-2023'!N96 -> 0 | K90: ='2022-2023'!O96 -> 0 | L90: ='2022-2023'!P96 -> 0 | M90: =SUM(C90:L90) -> 0
B91: Hitachi Vantara | C91: ='2022-2023'!AO96 -> 0 | D91: ='2022-2023'!AP96 -> 0 | E91: ='2022-2023'!AQ96 -> 0 | F91: ='2022-2023'!AR96 -> 0 | G91: ='2022-2023'!AS96 -> 0 | H91: ='2022-2023'!AT96 -> 0 | I91: ='2022-2023'!AU96 -> 0 | J91: ='2022-2023'!AV96 -> 0 | K91: ='2022-2023'!AW96 -> 0 | L91: ='2022-2023'!AX96 -> 0 | M91: 0
B92: Hitachi Europe | C92: ='2022-2023'!AZ96 -> 0 | D92: ='2022-2023'!BA96 -> 0 | E92: ='2022-2023'!BB96 -> 0 | F92: ='2022-2023'!BC96 -> 0 | G92: ='2022-2023'!BD96 -> 0 | H92: ='2022-2023'!BE96 -> 0 | I92: ='2022-2023'!BF96 -> 0 | J92: ='2022-2023'!BG96 -> 0 | K92: ='2022-2023'!BH96 -> 0 | L92: ='2022-2023'!BI96 -> 0 | M92: 0
B93: Hitachi Capital | C93: ='2022-2023'!BK96 -> 0 | D93: ='2021-2022'!BL109 -> 0 | E93: ='2021-2022'!BM109 -> 0 | F93: ='2021-2022'!BN109 -> 0 | G93: ='2021-2022'!BO109 -> 0 | H93: ='2021-2022'!BP109 -> 0 | I93: ='2021-2022'!BQ109 -> 0 | J93: ='2021-2022'!BR109 -> 0 | K93: ='2021-2022'!BS109 -> 0 | L93: ='2021-2022'!BT109 -> 0 | M93: 0
B94: Royal Mail | C94: ='2022-2023'!BV96 -> 0 | D94: ='2022-2023'!BW96 -> 0 | E94: ='2022-2023'!BX96 -> 0 | F94: ='2022-2023'!BY96 -> 0 | G94: ='2022-2023'!BZ96 -> 0 | H94: ='2022-2023'!CA96 -> 0 | I94: ='2022-2023'!CB96 -> 0 | J94: ='2022-2023'!CC96 -> 0 | K94: ='2022-2023'!CD96 -> 0 | L94: ='2022-2023'!CE96 -> 0 | M94: 0
B95: Centrica | C95: ='2022-2023'!CG96 -> 0 | D95: ='2022-2023'!CH96 -> 0 | E95: ='2022-2023'!CI96 -> 0 | F95: ='2022-2023'!CJ96 -> 0 | G95: ='2022-2023'!CK96 -> 0 | H95: ='2022-2023'!CL96 -> 0 | I95: ='2022-2023'!CM96 -> 0 | J95: ='2022-2023'!CN96 -> 0 | K95: ='2022-2023'!CO96 -> 0 | L95: ='2022-2023'!CP96 -> 0 | M95: 0
B96: Uber | C96: ='2022-2023'!CR96 -> 0 | D96: ='2022-2023'!CS96 -> 0 | E96: ='2022-2023'!CT96 -> 0 | F96: ='2022-2023'!CU96 -> 0 | G96: ='2022-2023'!CV96 -> 0 | H96: ='2022-2023'!CW96 -> 0 | I96: ='2022-2023'!CX96 -> 0 | J96: ='2022-2023'!CY96 -> 0 | K96: ='2022-2023'!CZ96 -> 0 | L96: ='2022-2023'!DA96 -> 0 | M96: 0
B97: SSEN | C97: ='2022-2023'!DC96 -> 0 | D97: ='2022-2023'!DD96 -> 0 | E97: ='2022-2023'!DE96 -> 0 | F97: ='2022-2023'!DF96 -> 0 | G97: ='2022-2023'!DG96 -> 0 | H97: ='2022-2023'!DH96 -> 0 | I97: ='2022-2023'!DI96 -> 0 | J97: ='2022-2023'!DJ96 -> 0 | K97: ='2022-2023'!DK96 -> 0 | L97: ='2022-2023'!DL96 -> 0 | M97: 0
B98: External Funding | C98: =SUM(C91:C97) -> 0 | D98: =SUM(D91:D97) -> 0 | E98: 0 | F98: 0 | G98: 0 | H98: 0 | I98: 0 | J98: 0 | K98: 0 | L98: 0 | M98: 0
B99: Licensee extra contribution | C99: ='2022-2023'!DN96 -> 0 | D99: ='2022-2023'!DO96 -> 0 | E99: ='2022-2023'!DP96 -> 0 | F99: ='2022-2023'!DQ96 -> 0 | G99: ='2022-2023'!DR96 -> 0 | H99: ='2022-2023'!DS96 -> 0 | I99: ='2022-2023'!DT96 -> 0 | J99: ='2022-2023'!DU96 -> 0 | K99: ='2022-2023'!DV96 -> 0 | L99: ='2022-2023'!DW96 -> 0 | M99: 0
B100: Initial Net Funding Required | C100: =C90-C98-C99 -> 0 | D100: 0 | E100: 0 | F100: 0 | G100: 0 | H100: 0 | I100: 0 | J100: 0 | K100: 0 | L100: 0 | M100: 0
B101: Licensee Compulsory Contribution | C101: ='2022-2023'!AD96 -> 0 | D101: ='2022-2023'!AE96 -> 0 | E101: ='2022-2023'!AF96 -> 0 | F101: ='2022-2023'!AG96 -> 0 | G101: ='2022-2023'!AH96 -> 0 | H101: ='2022-2023'!AI96 -> 0 | I101: ='2022-2023'!AJ96 -> 0 | J101: ='2022-2023'!AK96 -> 0 | K101: ='2022-2023'!AL96 -> 0 | L101: ='2022-2023'!AM96 -> 0 | M101: 0
B102: Outstanding Funding Required | C102: ='2022-2023'!DY96 -> 0 | D102: ='2022-2023'!DZ96 -> 0 | E102: ='2022-2023'!EA96 -> 0 | F102: ='2022-2023'!EB96 -> 0 | G102: ='2022-2023'!EC96 -> 0 | H102: ='2022-2023'!ED96 -> 0 | I102: ='2022-2023'!EE96 -> 0 | J102: ='2022-2023'!EF96 -> 0 | K102: ='2022-2023'!EG96 -> 0 | L102: ='2022-2023'!EH96 -> 0 | M102: 0
C104: 2023/24
C105: Cost type
C106: Labour | D106: Equipment | E106: Contractors | F106: IT | G106: IPR Costs | H106: Travel & Expenses | I106: Payments to users | J106: Contingency | K106: Decommissioning | L106: Other | M106: Total
B107: Total Project Cost | C107: ='2023-2024'!G9 -> 0 | D107: ='2023-2024'!H9 -> 0 | E107: ='2023-2024'!I9 -> 0 | F107: ='2023-2024'!J9 -> 0 | G107: ='2023-2024'!K9 -> 0 | H107: ='2023-2024'!L9 -> 0 | I107: ='2023-2024'!M9 -> 0 | J107: ='2023-2024'!N9 -> 0 | K107: ='2023-2024'!O9 -> 0 | L107: ='2023-2024'!P9 -> 0 | M107: =SUM(C107:L107) -> 0
B108: Hitachi Vantara | C108: ='2023-2024'!AO9 -> 0 | D108: ='2023-2024'!AP9 -> 0 | E108: ='2023-2024'!AQ9 -> 0 | F108: ='2023-2024'!AR9 -> 0 | G108: ='2023-2024'!AS9 -> 0 | H108: ='2023-2024'!AT9 -> 0 | I108: ='2023-2024'!AU9 -> 0 | J108: ='2023-2024'!AV9 -> 0 | K108: ='2023-2024'!AW9 -> 0 | L108: ='2023-2024'!AX9 -> 0 | M108: 0
B109: Hitachi Europe | C109: ='2023-2024'!AZ9 -> 0 | D109: ='2023-2024'!BA9 -> 0 | E109: ='2023-2024'!BB9 -> 0 | F109: ='2023-2024'!BC9 -> 0 | G109: ='2023-2024'!BD9 -> 0 | H109: ='2023-2024'!BE9 -> 0 | I109: ='2023-2024'!BF9 -> 0 | J109: ='2023-2024'!BG9 -> 0 | K109: ='2023-2024'!BH9 -> 0 | L109: ='2023-2024'!BI9 -> 0 | M109: 0
B110: Hitachi Capital | C110: ='2023-2024'!BK9 -> 0 | D110: ='2023-2024'!BL35 -> 0 | E110: ='2023-2024'!BM35 -> 0 | F110: ='2023-2024'!BN35 -> 0 | G110: ='2023-2024'!BO35 -> 0 | H110: ='2023-2024'!BP35 -> 0 | I110: ='2023-2024'!BQ35 -> 0 | J110: ='2023-2024'!BR35 -> 0 | K110: ='2023-2024'!BS35 -> 0 | L110: ='2023-2024'!BT35 -> 0 | M110: 0
B111: Royal Mail | C111: ='2022-2023'!BV96 -> 0 | D111: ='2022-2023'!BW96 -> 0 | E111: ='2022-2023'!BX96 -> 0 | F111: ='2022-2023'!BY96 -> 0 | G111: ='2022-2023'!BZ96 -> 0 | H111: ='2022-2023'!CA96 -> 0 | I111: ='2022-2023'!CB96 -> 0 | J111: ='2022-2023'!CC96 -> 0 | K111: ='2022-2023'!CD96 -> 0 | L111: ='2022-2023'!CE96 -> 0 | M111: 0
B112: Centrica | C112: ='2023-2024'!CG9 -> 0 | D112: ='2023-2024'!CH9 -> 0 | E112: ='2023-2024'!CI9 -> 0 | F112: ='2023-2024'!CJ9 -> 0 | G112: ='2023-2024'!CK9 -> 0 | H112: ='2023-2024'!CL9 -> 0 | I112: ='2023-2024'!CM9 -> 0 | J112: ='2023-2024'!CN9 -> 0 | K112: ='2023-2024'!CO9 -> 0 | L112: ='2023-2024'!CP9 -> 0 | M112: 0
B113: Uber | C113: ='2023-2024'!CR9 -> 0 | D113: ='2023-2024'!CS9 -> 0 | E113: ='2023-2024'!CT9 -> 0 | F113: ='2023-2024'!CU9 -> 0 | G113: ='2023-2024'!CV9 -> 0 | H113: ='2023-2024'!CW9 -> 0 | I113: ='2023-2024'!CX9 -> 0 | J113: ='2023-2024'!CY9 -> 0 | K113: ='2023-2024'!CZ9 -> 0 | L113: ='2023-2024'!DA9 -> 0 | M113: 0
B114: SSEN | C114: ='2023-2024'!DC9 -> 0 | D114: ='2023-2024'!DD9 -> 0 | E114: ='2023-2024'!DE9 -> 0 | F114: ='2023-2024'!DF9 -> 0 | G114: ='2023-2024'!DG9 -> 0 | H114: ='2023-2024'!DH9 -> 0 | I114: ='2023-2024'!DI9 -> 0 | J114: ='2023-2024'!DJ9 -> 0 | K114: ='2023-2024'!DK9 -> 0 | L114: ='2023-2024'!DL9 -> 0 | M114: 0
B115: External Funding | C115: =SUM(C108:C114) -> 0 | D115: =SUM(D108:D114) -> 0 | E115: 0 | F115: 0 | G115: 0 | H115: 0 | I115: 0 | J115: 0 | K115: 0 | L115: 0 | M115: 0
B116: Licensee extra contribution | C116: ='2023-2024'!DN9 -> 0 | D116: ='2023-2024'!DO9 -> 0 | E116: ='2023-2024'!DP9 -> 0 | F116: ='2023-2024'!DQ9 -> 0 | G116: ='2023-2024'!DR9 -> 0 | H116: ='2023-2024'!DS9 -> 0 | I116: ='2023-2024'!DT9 -> 0 | J116: ='2023-2024'!DU9 -> 0 | K116: ='2023-2024'!DV9 -> 0 | L116: ='2023-2024'!DW9 -> 0 | M116: 0
B117: Initial Net Funding Required | C117: =C107-C115-C116 -> 0 | D117: 0 | E117: 0 | F117: 0 | G117: 0 | H117: 0 | I117: 0 | J117: 0 | K117: 0 | L117: 0 | M117: 0
B118: Licensee Compulsory Contribution | C118: ='2023-2024'!AD9 -> 0 | D118: ='2023-2024'!AE9 -> 0 | E118: ='2023-2024'!AF9 -> 0 | F118: ='2023-2024'!AG9 -> 0 | G118: ='2023-2024'!AH9 -> 0 | H118: ='2023-2024'!AI9 -> 0 | I118: ='2023-2024'!AJ9 -> 0 | J118: ='2023-2024'!AK9 -> 0 | K118: ='2023-2024'!AL9 -> 0 | L118: ='2023-2024'!AM9 -> 0 | M118: 0
B119: Outstanding Funding Required | C119: ='2023-2024'!DY9 -> 0 | D119: ='2023-2024'!DZ9 -> 0 | E119: ='2023-2024'!EA9 -> 0 | F119: ='2023-2024'!EB9 -> 0 | G119: ='2023-2024'!EC9 -> 0 | H119: ='2023-2024'!ED9 -> 0 | I119: ='2023-2024'!EE9 -> 0 | J119: ='2023-2024'!EF9 -> 0 | K119: ='2023-2024'!EG9 -> 0 | L119: ='2023-2024'!EH9 -> 0 | M119: 0
C121: 2024/25
C122: Cost type
C123: Labour | D123: Equipment | E123: Contractors | F123: IT | G123: IPR Costs | H123: Travel & Expenses | I123: Payments to users | J123: Contingency | K123: Decommissioning | L123: Other | M123: Total
B124: Total Project Cost | C124: ='2024-2025'!G9 -> 0 | D124: ='2024-2025'!H9 -> 0 | E124: ='2024-2025'!I9 -> 0 | F124: ='2024-2025'!J9 -> 0 | G124: ='2024-2025'!K9 -> 0 | H124: ='2024-2025'!L9 -> 0 | I124: ='2024-2025'!M9 -> 0 | J124: ='2024-2025'!N9 -> 0 | K124: ='2024-2025'!O9 -> 0 | L124: ='2024-2025'!P9 -> 0 | M124: =SUM(C124:L124) -> 0
B125: Hitachi Vantara | C125: ='2024-2025'!AO9 -> 0 | D125: ='2024-2025'!AP9 -> 0 | E125: ='2024-2025'!AQ9 -> 0 | F125: ='2024-2025'!AR9 -> 0 | G125: ='2024-2025'!AS9 -> 0 | H125: ='2024-2025'!AT9 -> 0 | I125: ='2024-2025'!AU9 -> 0 | J125: ='2024-2025'!AV9 -> 0 | K125: ='2024-2025'!AW9 -> 0 | L125: ='2024-2025'!AX9 -> 0 | M125: 0
B126: Hitachi Europe | C126: ='2024-2025'!AZ9 -> 0 | D126: ='2024-2025'!BA9 -> 0 | E126: ='2024-2025'!BB9 -> 0 | F126: ='2024-2025'!BC9 -> 0 | G126: ='2024-2025'!BD9 -> 0 | H126: ='2024-2025'!BE9 -> 0 | I126: ='2024-2025'!BF9 -> 0 | J126: ='2024-2025'!BG9 -> 0 | K126: ='2024-2025'!BH9 -> 0 | L126: ='2024-2025'!BI9 -> 0 | M126: 0
B127: Hitachi Capital | C127: ='2024-2025'!BK9 -> 0 | D127: ='2024-2025'!BL9 -> 0 | E127: ='2024-2025'!BM9 -> 0 | F127: ='2024-2025'!BN9 -> 0 | G127: ='2024-2025'!BO9 -> 0 | H127: ='2024-2025'!BP9 -> 0 | I127: ='2024-2025'!BQ9 -> 0 | J127: ='2024-2025'!BR9 -> 0 | K127: ='2024-2025'!BS9 -> 0 | L127: ='2024-2025'!BT9 -> 0 | M127: 0
B128: Royal Mail | C128: ='2024-2025'!BV9 -> 0 | D128: ='2024-2025'!BW9 -> 0 | E128: ='2024-2025'!BX9 -> 0 | F128: ='2024-2025'!BY9 -> 0 | G128: ='2024-2025'!BZ9 -> 0 | H128: ='2024-2025'!CA9 -> 0 | I128: ='2024-2025'!CB9 -> 0 | J128: ='2024-2025'!CC9 -> 0 | K128: ='2024-2025'!CD9 -> 0 | L128: ='2024-2025'!CE9 -> 0 | M128: 0
B129: Centrica | C129: ='2024-2025'!CG9 -> 0 | D129: ='2024-2025'!CH9 -> 0 | E129: ='2024-2025'!CI9 -> 0 | F129: ='2024-2025'!CJ9 -> 0 | G129: ='2024-2025'!CK9 -> 0 | H129: ='2024-2025'!CL9 -> 0 | I129: ='2024-2025'!CM9 -> 0 | J129: ='2024-2025'!CN9 -> 0 | K129: ='2024-2025'!CO9 -> 0 | L129: ='2024-2025'!CP9 -> 0 | M129: 0
B130: Uber | C130: ='2024-2025'!CR9 -> 0 | D130: ='2024-2025'!CS9 -> 0 | E130: ='2024-2025'!CT9 -> 0 | F130: ='2024-2025'!CU9 -> 0 | G130: ='2024-2025'!CV9 -> 0 | H130: ='2024-2025'!CW9 -> 0 | I130: ='2024-2025'!CX9 -> 0 | J130: ='2024-2025'!CY9 -> 0 | K130: ='2024-2025'!CZ9 -> 0 | L130: ='2024-2025'!DA9 -> 0 | M130: 0
B131: SSEN | C131: ='2024-2025'!DC9 -> 0 | D131: ='2024-2025'!DD9 -> 0 | E131: ='2024-2025'!DE9 -> 0 | F131: ='2024-2025'!DF9 -> 0 | G131: ='2024-2025'!DG9 -> 0 | H131: ='2024-2025'!DH9 -> 0 | I131: ='2024-2025'!DI9 -> 0 | J131: ='2024-2025'!DJ9 -> 0 | K131: ='2024-2025'!DK9 -> 0 | L131: ='2024-2025'!DL9 -> 0 | M131: 0
B132: External Funding | C132: =SUM(C125:C131) -> 0 | D132: =SUM(D125:D131) -> 0 | E132: 0 | F132: 0 | G132: 0 | H132: 0 | I132: 0 | J132: 0 | K132: 0 | L132: 0 | M132: 0
B133: Licensee extra contribution | C133: ='2024-2025'!DN9 -> 0 | D133: ='2024-2025'!DO9 -> 0 | E133: ='2024-2025'!DP9 -> 0 | F133: ='2024-2025'!DQ9 -> 0 | G133: ='2024-2025'!DR9 -> 0 | H133: ='2024-2025'!DS9 -> 0 | I133: ='2024-2025'!DT9 -> 0 | J133: ='2024-2025'!DU9 -> 0 | K133: ='2024-2025'!DV9 -> 0 | L133: ='2024-2025'!DW9 -> 0 | M133: 0
B134: Initial Net Funding Required | C134: =C124-C132-C133 -> 0 | D134: 0 | E134: 0 | F134: 0 | G134: 0 | H134: 0 | I134: 0 | J134: 0 | K134: 0 | L134: 0 | M134: 0
B135: Licensee Compulsory Contribution | C135: ='2024-2025'!AD9 -> 0 | D135: ='2024-2025'!AE9 -> 0 | E135: ='2024-2025'!AF9 -> 0 | F135: ='2024-2025'!AG9 -> 0 | G135: ='2024-2025'!AH9 -> 0 | H135: ='2024-2025'!AI9 -> 0 | I135: ='2024-2025'!AJ9 -> 0 | J135: ='2024-2025'!AK9 -> 0 | K135: ='2024-2025'!AL9 -> 0 | L135: ='2024-2025'!AM9 -> 0 | M135: 0
B136: Outstanding Funding Required | C136: ='2024-2025'!DY9 -> 0 | D136: ='2024-2025'!DZ9 -> 0 | E136: ='2024-2025'!EA9 -> 0 | F136: ='2024-2025'!EB9 -> 0 | G136: ='2024-2025'!EC9 -> 0 | H136: ='2024-2025'!ED9 -> 0 | I136: ='2024-2025'!EE9 -> 0 | J136: ='2024-2025'!EF9 -> 0 | K136: ='2024-2025'!EG9 -> 0 | L136: ='2024-2025'!EH9 -> 0 | M136: 0
C138: 2025/26
C139: Cost type
C140: Labour | D140: Equipment | E140: Contractors | F140: IT | G140: IPR Costs | H140: Travel & Expenses | I140: Payments to users | J140: Contingency | K140: Decommissioning | L140: Other | M140: Total
B141: Total Project Cost | C141: ='2025-2026'!G22 -> 0 | D141: ='2025-2026'!H9 -> 0 | E141: ='2025-2026'!I9 -> 0 | F141: ='2025-2026'!J9 -> 0 | G141: ='2025-2026'!K9 -> 0 | H141: ='2025-2026'!L9 -> 0 | I141: ='2025-2026'!M9 -> 0 | J141: ='2025-2026'!N9 -> 0 | K141: ='2025-2026'!O9 -> 0 | L141: ='2025-2026'!P9 -> 0 | M141: =SUM(C141:L141) -> 0
B142: Hitachi Vantara | C142: ='2025-2026'!AO22 -> 0 | D142: ='2025-2026'!AP9 -> 0 | E142: ='2025-2026'!AQ9 -> 0 | F142: ='2025-2026'!AR9 -> 0 | G142: ='2025-2026'!AS9 -> 0 | H142: ='2025-2026'!AT9 -> 0 | I142: ='2025-2026'!AU9 -> 0 | J142: ='2025-2026'!AV9 -> 0 | K142: ='2025-2026'!AW9 -> 0 | L142: ='2025-2026'!AX9 -> 0 | M142: 0
B143: Hitachi Europe | C143: ='2025-2026'!AZ22 -> 0 | D143: ='2025-2026'!BA9 -> 0 | E143: ='2025-2026'!BB9 -> 0 | F143: ='2025-2026'!BC9 -> 0 | G143: ='2025-2026'!BD9 -> 0 | H143: ='2025-2026'!BE9 -> 0 | I143: ='2025-2026'!BF9 -> 0 | J143: ='2025-2026'!BG9 -> 0 | K143: ='2025-2026'!BH9 -> 0 | L143: ='2025-2026'!BI9 -> 0 | M143: 0
B144: Hitachi Capital | C144: ='2025-2026'!BK22 -> 0 | D144: ='2025-2026'!BL61 -> 0 | E144: ='2025-2026'!BM61 -> 0 | F144: ='2025-2026'!BN61 -> 0 | G144: ='2025-2026'!BO61 -> 0 | H144: ='2025-2026'!BP61 -> 0 | I144: ='2025-2026'!BQ61 -> 0 | J144: ='2025-2026'!BR61 -> 0 | K144: ='2025-2026'!BS61 -> 0 | L144: ='2025-2026'!BT61 -> 0 | M144: 0
B145: Royal Mail | C145: ='2025-2026'!BV9 -> 0 | D145: ='2025-2026'!BW9 -> 0 | E145: ='2025-2026'!BX9 -> 0 | F145: ='2025-2026'!BY9 -> 0 | G145: ='2025-2026'!BZ9 -> 0 | H145: ='2025-2026'!CA9 -> 0 | I145: ='2025-2026'!CB9 -> 0 | J145: ='2025-2026'!CC9 -> 0 | K145: ='2025-2026'!CD9 -> 0 | L145: ='2025-2026'!CE9 -> 0 | M145: 0
B146: Centrica | C146: ='2025-2026'!CG9 -> 0 | D146: ='2025-2026'!CH9 -> 0 | E146: ='2025-2026'!CI9 -> 0 | F146: ='2025-2026'!CJ9 -> 0 | G146: ='2025-2026'!CK9 -> 0 | H146: ='2025-2026'!CL9 -> 0 | I146: ='2025-2026'!CM9 -> 0 | J146: ='2025-2026'!CN9 -> 0 | K146: ='2025-2026'!CO9 -> 0 | L146: ='2025-2026'!CP9 -> 0 | M146: 0
B147: Uber | C147: ='2025-2026'!CR9 -> 0 | D147: ='2025-2026'!CS9 -> 0 | E147: ='2025-2026'!CT9 -> 0 | F147: ='2025-2026'!CU9 -> 0 | G147: ='2025-2026'!CV9 -> 0 | H147: ='2025-2026'!CW9 -> 0 | I147: ='2025-2026'!CX9 -> 0 | J147: ='2025-2026'!CY9 -> 0 | K147: ='2025-2026'!CZ9 -> 0 | L147: ='2025-2026'!DA9 -> 0 | M147: 0
B148: SSEN | C148: ='2025-2026'!DC9 -> 0 | D148: ='2025-2026'!DD9 -> 0 | E148: ='2025-2026'!DE9 -> 0 | F148: ='2025-2026'!DF9 -> 0 | G148: ='2025-2026'!DG9 -> 0 | H148: ='2025-2026'!DH9 -> 0 | I148: ='2025-2026'!DI9 -> 0 | J148: ='2025-2026'!DJ9 -> 0 | K148: ='2025-2026'!DK9 -> 0 | L148: ='2025-2026'!DL9 -> 0 | M148: 0
B149: External Funding | C149: =SUM(C142:C148) -> 0 | D149: =SUM(D142:D148) -> 0 | E149: 0 | F149: 0 | G149: 0 | H149: 0 | I149: 0 | J149: 0 | K149: 0 | L149: 0 | M149: 0
B150: Licensee extra contribution | C150: ='2025-2026'!DN9 -> 0 | D150: ='2025-2026'!DO9 -> 0 | E150: ='2025-2026'!DP9 -> 0 | F150: ='2025-2026'!DQ9 -> 0 | G150: ='2025-2026'!DR9 -> 0 | H150: ='2025-2026'!DS9 -> 0 | I150: ='2025-2026'!DT9 -> 0 | J150: ='2025-2026'!DU9 -> 0 | K150: ='2025-2026'!DV9 -> 0 | L150: ='2025-2026'!DW9 -> 0 | M150: 0
B151: Initial Net Funding Required | C151: =C141-C149-C150 -> 0 | D151: 0 | E151: 0 | F151: 0 | G151: 0 | H151: 0 | I151: 0 | J151: 0 | K151: 0 | L151: 0 | M151: 0
B152: Licensee Compulsory Contribution | C152: ='2025-2026'!AD9 -> 0 | D152: ='2025-2026'!AE9 -> 0 | E152: ='2025-2026'!AF9 -> 0 | F152: ='2025-2026'!AG9 -> 0 | G152: ='2025-2026'!AH9 -> 0 | H152: ='2025-2026'!AI9 -> 0 | I152: ='2025-2026'!AJ9 -> 0 | J152: ='2025-2026'!AK9 -> 0 | K152: ='2025-2026'!AL9 -> 0 | L152: ='2025-2026'!AM9 -> 0 | M152: 0
B153: Outstanding Funding Required | C153: ='2025-2026'!DY9 -> 0 | D153: ='2025-2026'!DZ9 -> 0 | E153: ='2025-2026'!EA9 -> 0 | F153: ='2025-2026'!EB9 -> 0 | G153: ='2025-2026'!EC9 -> 0 | H153: ='2025-2026'!ED9 -> 0 | I153: ='2025-2026'!EE9 -> 0 | J153: ='2025-2026'!EF9 -> 0 | K153: ='2025-2026'!EG9 -> 0 | L153: ='2025-2026'!EH9 -> 0 | M153: 0

Sheet 2018-2019
B1: Project Costs in 2018-2019
G4: Total Cost £K | R4: Funding source % | AD4: Licensee Compulsory Contribution/Direct Benefits | AO4: Hitachi Vantara | AZ4: Hitachi Europe | BK4: Hitachi Capital | BV4: Royal Mail | CG4: Centrica | CR4: Uber | DC4: SSEN | DN4: Licensee Extra Contribution | DY4: Outstanding Funding Required
G5: Labour | H5: Equipment | I5: Contractors | J5: IT | K5: IPR Costs | L5: Travel & Expenses | M5: Payments to users | N5: Contingency | O5: Decommissioning | P5: Other | R5: Licensee Compulsory Contribution /Direct Benefits | S5: Hitachi Vantara | T5: Hitachi Europe | U5: Hitachi Capital | V5: Royal Mail | W5: Centrica | X5: Uber | Y5: SSEN | Z5: Licensee Extra Contribution | AA5: Oustanding Funding Required | AB5: Total | AD5: Labour | AE5: Equipment | AF5: Contractors | AG5: IT | AH5: IPR Costs | AI5: Travel & Expenses | AJ5: Payments to users | AK5: Contingency | AL5: Decommissioning | AM5: Other | AO5: Labour | AP5: Equipment | AQ5: Contractors | AR5: IT | AS5: IPR Costs | AT5: Travel & Expenses | AU5: Payments to users | AV5: Contingency | AW5: Decommissioning | AX5: Other | AZ5: Labour | BA5: Equipment | BB5: Contractors | BC5: IT | BD5: IPR Costs | BE5: Travel & Expenses | BF5: Payments to users | BG5: Contingency | BH5: Decommissioning | BI5: Other | BK5: Labour | BL5: Equipment | BM5: Contractors | BN5: IT | BO5: IPR Costs | BP5: Travel & Expenses | BQ5: Payments to users | BR5: Contingency | BS5: Decommissioning | BT5: Other | BV5: Labour | BW5: Equipment | BX5: Contractors | BY5: IT | BZ5: IPR Costs | CA5: Travel & Expenses | CB5: Payments to users | CC5: Contingency | CD5: Decommissioning | CE5: Other | CG5: Labour | CH5: Equipment | CI5: Contractors | CJ5: IT | CK5: IPR Costs | CL5: Travel & Expenses | CM5: Payments to users | CN5: Contingency | CO5: Decommissioning | CP5: Other | CR5: Labour | CS5: Equipment | CT5: Contractors | CU5: IT | CV5: IPR Costs | CW5: Travel & Expenses | CX5: Payments to users | CY5: Contingency | CZ5: Decommissioning | DA5: Other | DC5: Labour | DD5: Equipment | DE5: Contractors | DF5: IT | DG5: IPR Costs | DH5: Travel & Expenses | DI5: Payments to users | DJ5: Contingency | DK5: Decommissioning | DL5: Other | DN5: Labour | DO5: Equipment | DP5: Contractors | DQ5: IT | DR5: IPR Costs | DS5: Travel & Expenses | DT5: Payments to users | DU5: Contingency | DV5: Decommissioning | DW5: Other | DY5: Labour | DZ5: Equipment | EA5: Contractors | EB5: IT | EC5: IPR Costs | ED5: Travel & Expenses | EE5: Payments to users | EF5: Contingency | EG5: Decommissioning | EH5: Other
B6: Description | C6: Task | D6: Project Workstream
B7: UKPN Standards Engineer | C7: Home trial | D7: WS1
B8: UKPN Income Management | C8: Home trial | D8: WS1
B9: T&S for FATs etc | C9: Home trial | D9: WS1
B10: UKPN Asset Engineer | C10: Depot trial | D10: WS2
B11: UKPN Connections Designer | C11: Depot trial | D11: WS2
B12: UKPN Customer Relationship Manager | C12: Depot trial | D12: WS2
B13: UKPN Standards Engineer | C13: Depot trial | D13: WS2
B14: UKPN IS resource | C14: Depot trial | D14: WS2
B15: Procurement / support | C15: Depot trial | D15: WS2
B16: Vendor (profiled connections tool) | C16: Depot trial | D16: WS2
B17: Site visits (T&S) | C17: Depot trial | D17: WS2
B18: UKPN Asset Engineer | C18: Mixed trial | D18: WS3
B19: UKPN Connections Designer | C19: Mixed trial | D19: WS3
B20: UKPN Customer Relationship Manager | C20: Mixed trial | D20: WS3
B21: Flexibility payments (WS1) | C21: DSR trialing Home | D21: WS1
B22: Flexibility payments (WS2) | C22: DSR trialing Depot | D22: WS2
B23: ANM/DERMS modification (contractor) | C23: DNO system integration | D23: WS4
B24: Systems integration (contractor) | C24: DNO system integration | D24: WS4
B25: GSA/Netmap mofication (contractor) | C25: DNO system integration | D25: WS4
B26: Cloud service | C26: DNO system integration | D26: WS4
B27: Piclo platform | C27: DNO system integration | D27: WS4
B28: Procurement / support | C28: Procurement | D28: WS4
B29: UKPN DSO Engineer (x 3 - 4 people) | C29: DNO system integration | D29: WS4
B30: UKPN IS architect | C30: DNO system integration | D30: WS4
B31: UKPN IS Project Manager | C31: DNO system integration | D31: WS4
B32: UKPN Control Systems and Automation Engineer | C32: DNO system integration | D32: WS4
B33: UKPN Asset Information engineer | C33: DNO system integration | D33: WS4
B34: UKPN Review | C34: Project review | D34: WS6
B35: Academic partner | C35: External data analysis | D35: WS6
B36: UKPN Data analyst | C36: Data analysis | D36: WS6
B37: Learning events | C37: Dissemination | D37: WS7
B38: LCNI Contribution | C38: Dissemination | D38: WS7
B39: UKPN Project Manager | C39: Project management | D39: WS7
B40: UKPN Project Support (x3 people) | C40: Project management | D40: WS7
B41: UKPN T&S | C41: Project management | D41: WS7
B42: UKPN Comms Lead | C42: Project communications | D42: WS7
B43: UKPN Legal | C43: Legal/contract advice | D43: WS7
B44: UKPN Contingency | C44: n/a | D44: WS7
B45: SSEN Standards Engineer | C45: Home trial | D45: WS1
B46: SSEN Asset Engineer | C46: Depot trial | D46: WS2
B47: SSEN Connections Designer | C47: Depot trial | D47: WS2
B48: SSEN Standards Engineer | C48: Depot trial | D48: WS2
B49: Site visits (T&S) | C49: Project management | D49: WS2
B50: SSEN Review | C50: Project review | D50: WS6
B51: SSEN Project Management | C51: Project Management | D51: WS7
B52: SSEN T&S | C52: Project Management | D52: WS7
B53: Telematics | C53: Vehicle monitoring-trial 1 | D53: WS1
B54: Telematics | C54: Vehicle monitoring-trial 2 | D54: WS2
B55: Data Science WS1 | C55: Home charging DS | D55: WS1
B56: Data Science WS2 | C56: Depot charging DS | D56: WS2
B57: Data Science WS3 | C57: Mixed charging DS | D57: WS3
B58: Data Science WS4 | C58: Flexibility DS | D58: WS4
B59: GSS (Analytics) | C59: Forecasting, flex analysis, data analysis | D59: WS4
B60: Analytics SW and SW Support | C60: Operation of IoT Platform | D60: WS4
B61: HW and SW platform | C61: Operation of IoT Platform | D61: WS4
B62: GSS (IaaS) | C62: Operation of IoT Platform | D62: WS4
B63: WS Lead | C63: Responsible for project reporting | D63: WS6
B64: WS Lead | C64: Leading PMO | D64: WS7
B65: PMO | C65: Overall management of the project | D65: WS7
B66: Governance | C66: Overall project governance | D66: WS7
B67: WS Lead | C67: Leading home trial activity | D67: WS1
B68: Trial designer | C68: Designing trial 1 | D68: WS1
B69: WS Lead | C69: Leading depot trial activity | D69: WS2
B70: Trial designer | C70: Designing trial 2 | D70: WS2
B71: Data Scientist (Blend) | C71: Creating depot planning tool | D71: WS2
B72: SW Engineer | C72: Creating depot planning tool | D72: WS2
B73: Smart equipment SME | C73: Creating depot planning tool | D73: WS2
B74: Planning tool designer | C74: Creating depot planning tool | D74: WS2
B75: Site works (sub-contractor) | C75: Implementing smart depot controller | D75: WS2
B76: IoT Engineer | C76: Implementing smart depot controller | D76: WS2
B77: WS Lead | C77: Leading implementation of trial 3 | D77: WS3
B78: Trial designer | C78: Designing trial 3 | D78: WS3
B79: WS Lead | C79: Leading forecasting & flexibility activity | D79: WS4
B80: IoT Engineer | C80: Implementing smart depot controller | D80: WS2
B81: Operating model SME | C81: Creating commercial models | D81: WS5
B82: Commercial SME | C82: Creating commercial models | D82: WS5
B83: CBA SME | C83: Creating commercial models | D83: WS5
B84: Behavioural SME | C84: Creating commercial models | D84: WS5
B85: Energy Technology Lead | C85: Overseeing overall project technical direction | D85: WS7
B86: HC Project Management | C86: Supporting home trial | D86: WS1
B87: Centrica Project Management | C87: Planning/implementing home method trial | D87: WS1
B88: REStore | C88: Develop at home charge | D88: WS1
B89: EV delta | C89: Purchase of EV vans & infra | D89: WS1
B90: RM Project Manager/support | C90: Planning/implementing depot method trial | D90: WS2
B91: EV delta | C91: Purchase of EV vans & infra for Depot (cost delta vs diesel) | D91: WS2
B92: Site cost | C92: Preparing sites for trial operation | D92: WS2
B93: Uber Project Management | C93: Set up & manage data exchange/trial 3 | D93: WS3
B94: Platform vehicle data | C94: Data for trial 3 | D94: WS3
B96: Total

Sheet 2019-2020
B1: Project Costs in 2019-2020
G4: Total Cost £K | R4: Funding source % | AD4: Licensee Compulsory Contribution/Direct Benefits | AO4: Hitachi Vantara | AZ4: Hitachi Europe | BK4: Hitachi Capital | BV4: Royal Mail | CG4: Centrica | CR4: Uber | DC4: SSEN | DN4: Licensee Extra Contribution | DY4: Outstanding Funding Required
G5: Labour | H5: Equipment | I5: Contractors | J5: IT | K5: IPR Costs | L5: Travel & Expenses | M5: Payments to users | N5: Contingency | O5: Decommissioning | P5: Other | R5: Licensee Compulsory Contribution /Direct Benefits | S5: Hitachi Vantara | T5: Hitachi Europe | U5: Hitachi Capital | V5: Royal Mail | W5: Centrica | X5: Uber | Y5: SSEN | Z5: Licensee Extra Contribution | AA5: Oustanding Funding Required | AB5: Total | AD5: Labour | AE5: Equipment | AF5: Contractors | AG5: IT | AH5: IPR Costs | AI5: Travel & Expenses | AJ5: Payments to users | AK5: Contingency | AL5: Decommissioning | AM5: Other | AO5: Labour | AP5: Equipment | AQ5: Contractors | AR5: IT | AS5: IPR Costs | AT5: Travel & Expenses | AU5: Payments to users | AV5: Contingency | AW5: Decommissioning | AX5: Other | AZ5: Labour | BA5: Equipment | BB5: Contractors | BC5: IT | BD5: IPR Costs | BE5: Travel & Expenses | BF5: Payments to users | BG5: Contingency | BH5: Decommissioning | BI5: Other | BK5: Labour | BL5: Equipment | BM5: Contractors | BN5: IT | BO5: IPR Costs | BP5: Travel & Expenses | BQ5: Payments to users | BR5: Contingency | BS5: Decommissioning | BT5: Other | BV5: Labour | BW5: Equipment | BX5: Contractors | BY5: IT | BZ5: IPR Costs | CA5: Travel & Expenses | CB5: Payments to users | CC5: Contingency | CD5: Decommissioning | CE5: Other | CG5: Labour | CH5: Equipment | CI5: Contractors | CJ5: IT | CK5: IPR Costs | CL5: Travel & Expenses | CM5: Payments to users | CN5: Contingency | CO5: Decommissioning | CP5: Other | CR5: Labour | CS5: Equipment | CT5: Contractors | CU5: IT | CV5: IPR Costs | CW5: Travel & Expenses | CX5: Payments to users | CY5: Contingency | CZ5: Decommissioning | DA5: Other | DC5: Labour | DD5: Equipment | DE5: Contractors | DF5: IT | DG5: IPR Costs | DH5: Travel & Expenses | DI5: Payments to users | DJ5: Contingency | DK5: Decommissioning | DL5: Other | DN5: Labour | DO5: Equipment | DP5: Contractors | DQ5: IT | DR5: IPR Costs | DS5: Travel & Expenses | DT5: Payments to users | DU5: Contingency | DV5: Decommissioning | DW5: Other | DY5: Labour | DZ5: Equipment | EA5: Contractors | EB5: IT | EC5: IPR Costs | ED5: Travel & Expenses | EE5: Payments to users | EF5: Contingency | EG5: Decommissioning | EH5: Other
B6: Description | C6: Task | D6: Project Workstream
B7: UKPN Standards Engineer | C7: Home trial | D7: WS1
B8: UKPN Income Management | C8: Home trial | D8: WS1
B9: T&S for FATs etc | C9: Home trial | D9: WS1
B10: UKPN Asset Engineer | C10: Depot trial | D10: WS2
B11: UKPN Connections Designer | C11: Depot trial | D11: WS2
B12: UKPN Customer Relationship Manager | C12: Depot trial | D12: WS2
B13: UKPN Standards Engineer | C13: Depot trial | D13: WS2
B14: UKPN IS resource | C14: Depot trial | D14: WS2
B15: Procurement / support | C15: Depot trial | D15: WS2
B16: Vendor (profiled connections tool) | C16: Depot trial | D16: WS2
B17: Site visits (T&S) | C17: Depot trial | D17: WS2
B18: UKPN Asset Engineer | C18: Mixed trial | D18: WS3
B19: UKPN Connections Designer | C19: Mixed trial | D19: WS3
B20: UKPN Customer Relationship Manager | C20: Mixed trial | D20: WS3
B21: Flexibility payments (WS1) | C21: DSR trialing Home | D21: WS1
B22: Flexibility payments (WS2) | C22: DSR trialing Depot | D22: WS2
B23: ANM/DERMS modification (contractor) | C23: DNO system integration | D23: WS4
B24: Systems integration (contractor) | C24: DNO system integration | D24: WS4
B25: GSA/Netmap mofication (contractor) | C25: DNO system integration | D25: WS4
B26: Cloud service | C26: DNO system integration | D26: WS4
B27: Piclo platform | C27: DNO system integration | D27: WS4
B28: Procurement / support | C28: Procurement | D28: WS4
B29: UKPN DSO Engineer (x 3 - 4 people) | C29: DNO system integration | D29: WS4
B30: UKPN IS architect | C30: DNO system integration | D30: WS4
B31: UKPN IS Project Manager | C31: DNO system integration | D31: WS4
B32: UKPN Control Systems and Automation Engineer | C32: DNO system integration | D32: WS4
B33: UKPN Asset Information engineer | C33: DNO system integration | D33: WS4
B34: UKPN Review | C34: Project review | D34: WS6
B35: Academic partner | C35: External data analysis | D35: WS6
B36: UKPN Data analyst | C36: Data analysis | D36: WS6
B37: Learning events | C37: Dissemination | D37: WS7
B38: LCNI Contribution | C38: Dissemination | D38: WS7
B39: UKPN Project Manager | C39: Project management | D39: WS7
B40: UKPN Project Support (x3 people) | C40: Project management | D40: WS7
B41: UKPN T&S | C41: Project management | D41: WS7
B42: UKPN Comms Lead | C42: Project communications | D42: WS7
B43: UKPN Legal | C43: Legal/contract advice | D43: WS7
B44: UKPN Contingency | C44: n/a | D44: WS7
B45: SSEN Standards Engineer | C45: Home trial | D45: WS1
B46: SSEN Asset Engineer | C46: Depot trial | D46: WS2
B47: SSEN Connections Designer | C47: Depot trial | D47: WS2
B48: SSEN Standards Engineer | C48: Depot trial | D48: WS2
B49: Site visits (T&S) | C49: Project management | D49: WS2
B50: SSEN Review | C50: Project review | D50: WS6
B51: SSEN Project Management | C51: Project Management | D51: WS7
B52: SSEN T&S | C52: Project Management | D52: WS7
B53: Telematics | C53: Vehicle monitoring-trial 1 | D53: WS1
B54: Telematics | C54: Vehicle monitoring-trial 2 | D54: WS2
B55: Data Science WS1 | C55: Home charging DS | D55: WS1
B56: Data Science WS2 | C56: Depot charging DS | D56: WS2
B57: Data Science WS3 | C57: Mixed charging DS | D57: WS3
B58: Data Science WS4 | C58: Flexibility DS | D58: WS4
B59: GSS (Analytics) | C59: Forecasting, flex analysis, data analysis | D59: WS4
B60: Analytics SW and SW Support | C60: Operation of IoT Platform | D60: WS4
B61: HW and SW platform | C61: Operation of IoT Platform | D61: WS4
B62: GSS (IaaS) | C62: Operation of IoT Platform | D62: WS4
B63: WS Lead | C63: Responsible for project reporting | D63: WS6
B64: WS Lead | C64: Leading PMO | D64: WS7
B65: PMO | C65: Overall management of the project | D65: WS7
B66: Governance | C66: Overall project governance | D66: WS7
B67: WS Lead | C67: Leading home trial activity | D67: WS1
B68: Trial designer | C68: Designing trial 1 | D68: WS1
B69: WS Lead | C69: Leading depot trial activity | D69: WS2
B70: Trial designer | C70: Designing trial 2 | D70: WS2
B71: Data Scientist (Blend) | C71: Creating depot planning tool | D71: WS2
B72: SW Engineer | C72: Creating depot planning tool | D72: WS2
B73: Smart equipment SME | C73: Creating depot planning tool | D73: WS2
B74: Planning tool designer | C74: Creating depot planning tool | D74: WS2
B75: Site works (sub-contractor) | C75: Implementing smart depot controller | D75: WS2
B76: IoT Engineer | C76: Implementing smart depot controller | D76: WS2
B77: WS Lead | C77: Leading implementation of trial 3 | D77: WS3
B78: Trial designer | C78: Designing trial 3 | D78: WS3
B79: WS Lead | C79: Leading forecasting & flexibility activity | D79: WS4
B80: WS Lead | C80: Leading business model activity | D80: WS5
B81: Operating model SME | C81: Creating commercial models | D81: WS5
B82: Commercial SME | C82: Creating commercial models | D82: WS5
B83: CBA SME | C83: Creating commercial models | D83: WS5
B84: Behavioural SME | C84: Creating commercial models | D84: WS5
B85: Energy Technology Lead | C85: Overseeing overall project technical direction | D85: WS7
B86: HC Project Management | C86: Supporting home trial | D86: WS1
B87: Centrica Project Management | C87: Planning/implementing home method trial | D87: WS1
B88: REStore | C88: Develop at home charge | D88: WS1
B89: EV delta | C89: Purchase of EV vans & infra | D89: WS1
B90: RM Project Manager/support | C90: Planning/implementing depot method trial | D90: WS2
B91: EV delta | C91: Purchase of EV vans & infra for Depot (cost delta vs diesel) | D91: WS2
B92: Site cost | C92: Preparing sites for trial operation | D92: WS2
B93: Uber Project Management | C93: Set up & manage data exchange/trial 3 | D93: WS3
B94: Platform vehicle data | C94: Data for trial 3 | D94: WS3
B96: Total

Sheet 2020-2021
B1: Project Costs in 2020-2021
G4: Total Cost £K | R4: Funding source % | AD4: Licensee Compulsory Contribution/Direct Benefits | AO4: Hitachi Vantara | AZ4: Hitachi Europe | BK4: Hitachi Capital | BV4: Royal Mail | CG4: Centrica | CR4: Uber | DC4: SSEN | DN4: Licensee Extra Contribution | DY4: Outstanding Funding Required
G5: Labour | H5: Equipment | I5: Contractors | J5: IT | K5: IPR Costs | L5: Travel & Expenses | M5: Payments to users | N5: Contingency | O5: Decommissioning | P5: Other | R5: Licensee Compulsory Contribution /Direct Benefits | S5: Hitachi Vantara | T5: Hitachi Europe | U5: Hitachi Capital | V5: Royal Mail | W5: Centrica | X5: Uber | Y5: SSEN | Z5: Licensee Extra Contribution | AA5: Oustanding Funding Required | AB5: Total | AD5: Labour | AE5: Equipment | AF5: Contractors | AG5: IT | AH5: IPR Costs | AI5: Travel & Expenses | AJ5: Payments to users | AK5: Contingency | AL5: Decommissioning | AM5: Other | AO5: Labour | AP5: Equipment | AQ5: Contractors | AR5: IT | AS5: IPR Costs | AT5: Travel & Expenses | AU5: Payments to users | AV5: Contingency | AW5: Decommissioning | AX5: Other | AZ5: Labour | BA5: Equipment | BB5: Contractors | BC5: IT | BD5: IPR Costs | BE5: Travel & Expenses | BF5: Payments to users | BG5: Contingency | BH5: Decommissioning | BI5: Other | BK5: Labour | BL5: Equipment | BM5: Contractors | BN5: IT | BO5: IPR Costs | BP5: Travel & Expenses | BQ5: Payments to users | BR5: Contingency | BS5: Decommissioning | BT5: Other | BV5: Labour | BW5: Equipment | BX5: Contractors | BY5: IT | BZ5: IPR Costs | CA5: Travel & Expenses | CB5: Payments to users | CC5: Contingency | CD5: Decommissioning | CE5: Other | CG5: Labour | CH5: Equipment | CI5: Contractors | CJ5: IT | CK5: IPR Costs | CL5: Travel & Expenses | CM5: Payments to users | CN5: Contingency | CO5: Decommissioning | CP5: Other | CR5: Labour | CS5: Equipment | CT5: Contractors | CU5: IT | CV5: IPR Costs | CW5: Travel & Expenses | CX5: Payments to users | CY5: Contingency | CZ5: Decommissioning | DA5: Other | DC5: Labour | DD5: Equipment | DE5: Contractors | DF5: IT | DG5: IPR Costs | DH5: Travel & Expenses | DI5: Payments to users | DJ5: Contingency | DK5: Decommissioning | DL5: Other | DN5: Labour | DO5: Equipment | DP5: Contractors | DQ5: IT | DR5: IPR Costs | DS5: Travel & Expenses | DT5: Payments to users | DU5: Contingency | DV5: Decommissioning | DW5: Other | DY5: Labour | DZ5: Equipment | EA5: Contractors | EB5: IT | EC5: IPR Costs | ED5: Travel & Expenses | EE5: Payments to users | EF5: Contingency | EG5: Decommissioning | EH5: Other
B6: Description | C6: Task | D6: Project Workstream
B7: UKPN Standards Engineer | C7: Home trial | D7: WS1
B8: UKPN Income Management | C8: Home trial | D8: WS1
B9: T&S for FATs etc | C9: Home trial | D9: WS1
B10: UKPN Asset Engineer | C10: Depot trial | D10: WS2
B11: UKPN Connections Designer | C11: Depot trial | D11: WS2
B12: UKPN Customer Relationship Manager | C12: Depot trial | D12: WS2
B13: UKPN Standards Engineer | C13: Depot trial | D13: WS2
B14: UKPN IS resource | C14: Depot trial | D14: WS2
B15: Procurement / support | C15: Depot trial | D15: WS2
B16: Vendor (profiled connections tool) | C16: Depot trial | D16: WS2
B17: Site visits (T&S) | C17: Depot trial | D17: WS2
B18: UKPN Asset Engineer | C18: Mixed trial | D18: WS3
B19: UKPN Connections Designer | C19: Mixed trial | D19: WS3
B20: UKPN Customer Relationship Manager | C20: Mixed trial | D20: WS3
B21: Flexibility payments (WS1) | C21: DSR trialing Home | D21: WS1
B22: Flexibility payments (WS2) | C22: DSR trialing Depot | D22: WS2
B23: ANM/DERMS modification (contractor) | C23: DNO system integration | D23: WS4
B24: Systems integration (contractor) | C24: DNO system integration | D24: WS4
B25: GSA/Netmap mofication (contractor) | C25: DNO system integration | D25: WS4
B26: Cloud service | C26: DNO system integration | D26: WS4
B27: Piclo platform | C27: DNO system integration | D27: WS4
B28: Procurement / support | C28: Procurement | D28: WS4
B29: UKPN DSO Engineer (x 3 - 4 people) | C29: DNO system integration | D29: WS4
B30: UKPN IS architect | C30: DNO system integration | D30: WS4
B31: UKPN IS Project Manager | C31: DNO system integration | D31: WS4
B32: UKPN Control Systems and Automation Engineer | C32: DNO system integration | D32: WS4
B33: UKPN Asset Information engineer | C33: DNO system integration | D33: WS4
B34: UKPN Review | C34: Project review | D34: WS6
B35: Academic partner | C35: External data analysis | D35: WS6
B36: UKPN Data analyst | C36: Data analysis | D36: WS6
B37: Learning events | C37: Dissemination | D37: WS7
B38: LCNI Contribution | C38: Dissemination | D38: WS7
B39: UKPN Project Manager | C39: Project management | D39: WS7
B40: UKPN Project Support (x3 people) | C40: Project management | D40: WS7
B41: UKPN T&S | C41: Project management | D41: WS7
B42: UKPN Comms Lead | C42: Project communications | D42: WS7
B43: UKPN Legal | C43: Legal/contract advice | D43: WS7
B44: UKPN Contingency | C44: n/a | D44: WS7
B45: SSEN Standards Engineer | C45: Home trial | D45: WS1
B46: SSEN Asset Engineer | C46: Depot trial | D46: WS2
B47: SSEN Connections Designer | C47: Depot trial | D47: WS2
B48: SSEN Standards Engineer | C48: Depot trial | D48: WS2
B49: Site visits (T&S) | C49: Project management | D49: WS2
B50: SSEN Review | C50: Project review | D50: WS6
B51: SSEN Project Management | C51: Project Management | D51: WS7
B52: SSEN T&S | C52: Project Management | D52: WS7
B53: Telematics | C53: Vehicle monitoring-trial 1 | D53: WS1
B54: Telematics | C54: Vehicle monitoring-trial 2 | D54: WS2
B55: Data Science WS1 | C55: Home charging DS | D55: WS1
B56: Data Science WS2 | C56: Depot charging DS | D56: WS2
B57: Data Science WS3 | C57: Mixed charging DS | D57: WS3
B58: Data Science WS4 | C58: Flexibility DS | D58: WS4
B59: GSS (Analytics) | C59: Forecasting, flex analysis, data analysis | D59: WS4
B60: Analytics SW and SW Support | C60: Operation of IoT Platform | D60: WS4
B61: HW and SW platform | C61: Operation of IoT Platform | D61: WS4
B62: GSS (IaaS) | C62: Operation of IoT Platform | D62: WS4
B63: WS Lead | C63: Responsible for project reporting | D63: WS6
B64: WS Lead | C64: Leading PMO | D64: WS7
B65: PMO | C65: Overall management of the project | D65: WS7
B66: Governance | C66: Overall project governance | D66: WS7
B67: WS Lead | C67: Leading home trial activity | D67: WS1
B68: Trial designer | C68: Designing trial 1 | D68: WS1
B69: WS Lead | C69: Leading depot trial activity | D69: WS2
B70: Trial designer | C70: Designing trial 2 | D70: WS2
B71: Data Scientist (Blend) | C71: Creating depot planning tool | D71: WS2
B72: SW Engineer | C72: Creating depot planning tool | D72: WS2
B73: Smart equipment SME | C73: Creating depot planning tool | D73: WS2
B74: Planning tool designer | C74: Creating depot planning tool | D74: WS2
B75: Site works (sub-contractor) | C75: Implementing smart depot controller | D75: WS2
B76: IoT Engineer | C76: Implementing smart depot controller | D76: WS2
B77: WS Lead | C77: Leading implementation of trial 3 | D77: WS3
B78: Trial designer | C78: Designing trial 3 | D78: WS3
B79: WS Lead | C79: Leading forecasting & flexibility activity | D79: WS4
B80: WS Lead | C80: Leading business model activity | D80: WS5
B81: Operating model SME | C81: Creating commercial models | D81: WS5
B82: Commercial SME | C82: Creating commercial models | D82: WS5
B83: CBA SME | C83: Creating commercial models | D83: WS5
B84: Behavioural SME | C84: Creating commercial models | D84: WS5
B85: Energy Technology Lead | C85: Overseeing overall project technical direction | D85: WS7
B86: HC Project Management | C86: Supporting home trial | D86: WS1
B87: Centrica Project Management | C87: Planning/implementing home method trial | D87: WS1
B88: REStore | C88: Develop at home charge | D88: WS1
B89: EV delta | C89: Purchase of EV vans & infra | D89: WS1
B90: RM Project Manager/support | C90: Planning/implementing depot method trial | D90: WS2
B91: EV delta | C91: Purchase of EV vans & infra for Depot (cost delta vs diesel) | D91: WS2
B92: Site cost | C92: Preparing sites for trial operation | D92: WS2
B93: Uber Project Management | C93: Set up & manage data exchange/trial 3 | D93: WS3
B94: Platform vehicle data | C94: Data for trial 3 | D94: WS3
B96: Total

Sheet 2021-2022
B1: Project Costs in 2021-2022
G4: Total Cost £K | R4: Funding source % | AD4: Licensee Compulsory Contribution/Direct Benefits | AO4: Hitachi Vantara | AZ4: Hitachi Europe | BK4: Hitachi Capital | BV4: Royal Mail | CG4: Centrica | CR4: Uber | DC4: SSEN | DN4: Licensee Extra Contribution | DY4: Outstanding Funding Required
G5: Labour | H5: Equipment | I5: Contractors | J5: IT | K5: IPR Costs | L5: Travel & Expenses | M5: Payments to users | N5: Contingency | O5: Decommissioning | P5: Other | R5: Licensee Compulsory Contribution /Direct Benefits | S5: Hitachi Vantara | T5: Hitachi Europe | U5: Hitachi Capital | V5: Royal Mail | W5: Centrica | X5: Uber | Y5: SSEN | Z5: Licensee Extra Contribution | AA5: Oustanding Funding Required | AB5: Total | AD5: Labour | AE5: Equipment | AF5: Contractors | AG5: IT | AH5: IPR Costs | AI5: Travel & Expenses | AJ5: Payments to users | AK5: Contingency | AL5: Decommissioning | AM5: Other | AO5: Labour | AP5: Equipment | AQ5: Contractors | AR5: IT | AS5: IPR Costs | AT5: Travel & Expenses | AU5: Payments to users | AV5: Contingency | AW5: Decommissioning | AX5: Other | AZ5: Labour | BA5: Equipment | BB5: Contractors | BC5: IT | BD5: IPR Costs | BE5: Travel & Expenses | BF5: Payments to users | BG5: Contingency | BH5: Decommissioning | BI5: Other | BK5: Labour | BL5: Equipment | BM5: Contractors | BN5: IT | BO5: IPR Costs | BP5: Travel & Expenses | BQ5: Payments to users | BR5: Contingency | BS5: Decommissioning | BT5: Other | BV5: Labour | BW5: Equipment | BX5: Contractors | BY5: IT | BZ5: IPR Costs | CA5: Travel & Expenses | CB5: Payments to users | CC5: Contingency | CD5: Decommissioning | CE5: Other | CG5: Labour | CH5: Equipment | CI5: Contractors | CJ5: IT | CK5: IPR Costs | CL5: Travel & Expenses | CM5: Payments to users | CN5: Contingency | CO5: Decommissioning | CP5: Other | CR5: Labour | CS5: Equipment | CT5: Contractors | CU5: IT | CV5: IPR Costs | CW5: Travel & Expenses | CX5: Payments to users | CY5: Contingency | CZ5: Decommissioning | DA5: Other | DC5: Labour | DD5: Equipment | DE5: Contractors | DF5: IT | DG5: IPR Costs | DH5: Travel & Expenses | DI5: Payments to users | DJ5: Contingency | DK5: Decommissioning | DL5: Other | DN5: Labour | DO5: Equipment | DP5: Contractors | DQ5: IT | DR5: IPR Costs | DS5: Travel & Expenses | DT5: Payments to users | DU5: Contingency | DV5: Decommissioning | DW5: Other | DY5: Labour | DZ5: Equipment | EA5: Contractors | EB5: IT | EC5: IPR Costs | ED5: Travel & Expenses | EE5: Payments to users | EF5: Contingency | EG5: Decommissioning | EH5: Other
B6: Description | C6: Task | D6: Project Workstream
B7: UKPN Standards Engineer | C7: Home trial | D7: WS1
B8: UKPN Income Management | C8: Home trial | D8: WS1
B9: T&S for FATs etc | C9: Home trial | D9: WS1
B10: UKPN Asset Engineer | C10: Depot trial | D10: WS2
B11: UKPN Connections Designer | C11: Depot trial | D11: WS2
B12: UKPN Customer Relationship Manager | C12: Depot trial | D12: WS2
B13: UKPN Standards Engineer | C13: Depot trial | D13: WS2
B14: UKPN IS resource | C14: Depot trial | D14: WS2
B15: Procurement / support | C15: Depot trial | D15: WS2
B16: Vendor (profiled connections tool) | C16: Depot trial | D16: WS2
B17: Site visits (T&S) | C17: Depot trial | D17: WS2
B18: UKPN Asset Engineer | C18: Mixed trial | D18: WS3
B19: UKPN Connections Designer | C19: Mixed trial | D19: WS3
B20: UKPN Customer Relationship Manager | C20: Mixed trial | D20: WS3
B21: Flexibility payments (WS1) | C21: DSR trialing Home | D21: WS1
B22: Flexibility payments (WS2) | C22: DSR trialing Depot | D22: WS2
B23: ANM/DERMS modification (contractor) | C23: DNO system integration | D23: WS4
B24: Systems integration (contractor) | C24: DNO system integration | D24: WS4
B25: GSA/Netmap mofication (contractor) | C25: DNO system integration | D25: WS4
B26: Cloud service | C26: DNO system integration | D26: WS4
B27: Piclo platform | C27: DNO system integration | D27: WS4
B28: Procurement / support | C28: Procurement | D28: WS4
B29: UKPN DSO Engineer (x 3 - 4 people) | C29: DNO system integration | D29: WS4
B30: UKPN IS architect | C30: DNO system integration | D30: WS4
B31: UKPN IS Project Manager | C31: DNO system integration | D31: WS4
B32: UKPN Control Systems and Automation Engineer | C32: DNO system integration | D32: WS4
B33: UKPN Asset Information engineer | C33: DNO system integration | D33: WS4
B34: UKPN Review | C34: Project review | D34: WS6
B35: Academic partner | C35: External data analysis | D35: WS6
B36: UKPN Data analyst | C36: Data analysis | D36: WS6
B37: Learning events | C37: Dissemination | D37: WS7
B38: LCNI Contribution | C38: Dissemination | D38: WS7
B39: UKPN Project Manager | C39: Project management | D39: WS7
B40: UKPN Project Support (x3 people) | C40: Project management | D40: WS7
B41: UKPN T&S | C41: Project management | D41: WS7
B42: UKPN Comms Lead | C42: Project communications | D42: WS7
B43: UKPN Legal | C43: Legal/contract advice | D43: WS7
B44: UKPN Contingency | C44: n/a | D44: WS7
B45: SSEN Standards Engineer | C45: Home trial | D45: WS1
B46: SSEN Asset Engineer | C46: Depot trial | D46: WS2
B47: SSEN Connections Designer | C47: Depot trial | D47: WS2
B48: SSEN Standards Engineer | C48: Depot trial | D48: WS2
B49: Site visits (T&S) | C49: Project management | D49: WS2
B50: SSEN Review | C50: Project review | D50: WS6
B51: SSEN Project Management | C51: Project Management | D51: WS7
B52: SSEN T&S | C52: Project Management | D52: WS7
B53: Telematics | C53: Vehicle monitoring-trial 1 | D53: WS1
B54: Telematics | C54: Vehicle monitoring-trial 2 | D54: WS2
B55: Data Science WS1 | C55: Home charging DS | D55: WS1
B56: Data Science WS2 | C56: Depot charging DS | D56: WS2
B57: Data Science WS3 | C57: Mixed charging DS | D57: WS3
B58: Data Science WS4 | C58: Flexibility DS | D58: WS4
B59: GSS (Analytics) | C59: Forecasting, flex analysis, data analysis | D59: WS4
B60: Analytics SW and SW Support | C60: Operation of IoT Platform | D60: WS4
B61: HW and SW platform | C61: Operation of IoT Platform | D61: WS4
B62: GSS (IaaS) | C62: Operation of IoT Platform | D62: WS4
B63: WS Lead | C63: Responsible for project reporting | D63: WS6
B64: WS Lead | C64: Leading PMO | D64: WS7
B65: PMO | C65: Overall management of the project | D65: WS7
B66: Governance | C66: Overall project governance | D66: WS7
B67: WS Lead | C67: Leading home trial activity | D67: WS1
B68: Trial designer | C68: Designing trial 1 | D68: WS1
B69: WS Lead | C69: Leading depot trial activity | D69: WS2
B70: Trial designer | C70: Designing trial 2 | D70: WS2
B71: Data Scientist (Blend) | C71: Creating depot planning tool | D71: WS2
B72: SW Engineer | C72: Creating depot planning tool | D72: WS2
B73: Smart equipment SME | C73: Creating depot planning tool | D73: WS2
B74: Planning tool designer | C74: Creating depot planning tool | D74: WS2
B75: Site works (sub-contractor) | C75: Implementing smart depot controller | D75: WS2
B76: IoT Engineer | C76: Implementing smart depot controller | D76: WS2
B77: WS Lead | C77: Leading implementation of trial 3 | D77: WS3
B78: Trial designer | C78: Designing trial 3 | D78: WS3
B79: WS Lead | C79: Leading forecasting & flexibility activity | D79: WS4
B80: WS Lead | C80: Leading business model activity | D80: WS5
B81: Operating model SME | C81: Creating commercial models | D81: WS5
B82: Commercial SME | C82: Creating commercial models | D82: WS5
B83: CBA SME | C83: Creating commercial models | D83: WS5
B84: Behavioural SME | C84: Creating commercial models | D84: WS5
B85: Energy Technology Lead | C85: Overseeing overall project technical direction | D85: WS7
B86: HC Project Management | C86: Supporting home trial | D86: WS1
B87: Centrica Project Management | C87: Planning/implementing home method trial | D87: WS1
B88: REStore | C88: Develop at home charge | D88: WS1
B89: EV delta | C89: Purchase of EV vans & infra | D89: WS1
B90: RM Project Manager/support | C90: Planning/implementing depot method trial | D90: WS2
B91: EV delta | C91: Purchase of EV vans & infra for Depot (cost delta vs diesel) | D91: WS2
B92: Site cost | C92: Preparing sites for trial operation | D92: WS2
B93: Uber Project Management | C93: Set up & manage data exchange/trial 3 | D93: WS3
B94: Platform vehicle data | C94: Data for trial 3 | D94: WS3
B96: Total

Sheet 2022-2023
B1: Project Costs in 2022-2023
B2: No Project Costs are planned for this period
G4: Total Cost £K | R4: Funding source % | AD4: Licensee Compulsory Contribution/Direct Benefits | AO4: Hitachi Vantara | AZ4: Hitachi Europe | BK4: Hitachi Capital | BV4: Royal Mail | CG4: Centrica | CR4: Uber | DC4: SSEN | DN4: Licensee Extra Contribution | DY4: Outstanding Funding Required
G5: Labour | H5: Equipment | I5: Contractors | J5: IT | K5: IPR Costs | L5: Travel & Expenses | M5: Payments to users | N5: Contingency | O5: Decommissioning | P5: Other | R5: Licensee Compulsory Contribution /Direct Benefits | S5: Hitachi Vantara | T5: Hitachi Europe | U5: Hitachi Capital | V5: Royal Mail | W5: Centrica | X5: Uber | Y5: SSEN | Z5: Licensee Extra Contribution | AA5: Oustanding Funding Required | AB5: Total | AD5: Labour | AE5: Equipment | AF5: Contractors | AG5: IT | AH5: IPR Costs | AI5: Travel & Expenses | AJ5: Payments to users | AK5: Contingency | AL5: Decommissioning | AM5: Other | AO5: Labour | AP5: Equipment | AQ5: Contractors | AR5: IT | AS5: IPR Costs | AT5: Travel & Expenses | AU5: Payments to users | AV5: Contingency | AW5: Decommissioning | AX5: Other | AZ5: Labour | BA5: Equipment | BB5: Contractors | BC5: IT | BD5: IPR Costs | BE5: Travel & Expenses | BF5: Payments to users | BG5: Contingency | BH5: Decommissioning | BI5: Other | BK5: Labour | BL5: Equipment | BM5: Contractors | BN5: IT | BO5: IPR Costs | BP5: Travel & Expenses | BQ5: Payments to users | BR5: Contingency | BS5: Decommissioning | BT5: Other | BV5: Labour | BW5: Equipment | BX5: Contractors | BY5: IT | BZ5: IPR Costs | CA5: Travel & Expenses | CB5: Payments to users | CC5: Contingency | CD5: Decommissioning | CE5: Other | CG5: Labour | CH5: Equipment | CI5: Contractors | CJ5: IT | CK5: IPR Costs | CL5: Travel & Expenses | CM5: Payments to users | CN5: Contingency | CO5: Decommissioning | CP5: Other | CR5: Labour | CS5: Equipment | CT5: Contractors | CU5: IT | CV5: IPR Costs | CW5: Travel & Expenses | CX5: Payments to users | CY5: Contingency | CZ5: Decommissioning | DA5: Other | DC5: Labour | DD5: Equipment | DE5: Contractors | DF5: IT | DG5: IPR Costs | DH5: Travel & Expenses | DI5: Payments to users | DJ5: Contingency | DK5: Decommissioning | DL5: Other | DN5: Labour | DO5: Equipment | DP5: Contractors | DQ5: IT | DR5: IPR Costs | DS5: Travel & Expenses | DT5: Payments to users | DU5: Contingency | DV5: Decommissioning | DW5: Other | DY5: Labour | DZ5: Equipment | EA5: Contractors | EB5: IT | EC5: IPR Costs | ED5: Travel & Expenses | EE5: Payments to users | EF5: Contingency | EG5: Decommissioning | EH5: Other
B6: Description | C6: Task | D6: Project Workstream
B7: UKPN Standards Engineer | C7: Home trial | D7: WS1
B8: UKPN Income Management | C8: Home trial | D8: WS1
B9: T&S for FATs etc | C9: Home trial | D9: WS1
B10: UKPN Asset Engineer | C10: Depot trial | D10: WS2
B11: UKPN Connections Designer | C11: Depot trial | D11: WS2
B12: UKPN Customer Relationship Manager | C12: Depot trial | D12: WS2
B13: UKPN Standards Engineer | C13: Depot trial | D13: WS2
B14: UKPN IS resource | C14: Depot trial | D14: WS2
B15: Procurement / support | C15: Depot trial | D15: WS2
B16: Vendor (profiled connections tool) | C16: Depot trial | D16: WS2
B17: Site visits (T&S) | C17: Depot trial | D17: WS2
B18: UKPN Asset Engineer | C18: Mixed trial | D18: WS3
B19: UKPN Connections Designer | C19: Mixed trial | D19: WS3
B20: UKPN Customer Relationship Manager | C20: Mixed trial | D20: WS3
B21: Flexibility payments (WS1) | C21: DSR trialing Home | D21: WS1
B22: Flexibility payments (WS2) | C22: DSR trialing Depot | D22: WS2
B23: ANM/DERMS modification (contractor) | C23: DNO system integration | D23: WS4
B24: Systems integration (contractor) | C24: DNO system integration | D24: WS4
B25: GSA/Netmap mofication (contractor) | C25: DNO system integration | D25: WS4
B26: Cloud service | C26: DNO system integration | D26: WS4
B27: Piclo platform | C27: DNO system integration | D27: WS4
B28: Procurement / support | C28: Procurement | D28: WS4
B29: UKPN DSO Engineer (x 3 - 4 people) | C29: DNO system integration | D29: WS4
B30: UKPN IS architect | C30: DNO system integration | D30: WS4
B31: UKPN IS Project Manager | C31: DNO system integration | D31: WS4
B32: UKPN Control Systems and Automation Engineer | C32: DNO system integration | D32: WS4
B33: UKPN Asset Information engineer | C33: DNO system integration | D33: WS4
B34: UKPN Review | C34: Project review | D34: WS6
B35: Academic partner | C35: External data analysis | D35: WS6
B36: UKPN Data analyst | C36: Data analysis | D36: WS6
B37: Learning events | C37: Dissemination | D37: WS7
B38: LCNI Contribution | C38: Dissemination | D38: WS7
B39: UKPN Project Manager | C39: Project management | D39: WS7
B40: UKPN Project Support (x3 people) | C40: Project management | D40: WS7
B41: UKPN T&S | C41: Project management | D41: WS7
B42: UKPN Comms Lead | C42: Project communications | D42: WS7
B43: UKPN Legal | C43: Legal/contract advice | D43: WS7
B44: UKPN Contingency | C44: n/a | D44: WS7
B45: SSEN Standards Engineer | C45: Home trial | D45: WS1
B46: SSEN Asset Engineer | C46: Depot trial | D46: WS2
B47: SSEN Connections Designer | C47: Depot trial | D47: WS2
B48: SSEN Standards Engineer | C48: Depot trial | D48: WS2
B49: Site visits (T&S) | C49: Project management | D49: WS2
B50: SSEN Review | C50: Project review | D50: WS6
B51: SSEN Project Management | C51: Project Management | D51: WS7
B52: SSEN T&S | C52: Project Management | D52: WS7
B53: Telematics | C53: Vehicle monitoring-trial 1 | D53: WS1
B54: Telematics | C54: Vehicle monitoring-trial 2 | D54: WS2
B55: Data Science WS1 | C55: Home charging DS | D55: WS1
B56: Data Science WS2 | C56: Depot charging DS | D56: WS2
B57: Data Science WS3 | C57: Mixed charging DS | D57: WS3
B58: Data Science WS4 | C58: Flexibility DS | D58: WS4
B59: GSS (Analytics) | C59: Forecasting, flex analysis, data analysis | D59: WS4
B60: Analytics SW and SW Support | C60: Operation of IoT Platform | D60: WS4
B61: HW and SW platform | C61: Operation of IoT Platform | D61: WS4
B62: GSS (IaaS) | C62: Operation of IoT Platform | D62: WS4
B63: WS Lead | C63: Responsible for project reporting | D63: WS6
B64: WS Lead | C64: Leading PMO | D64: WS7
B65: PMO | C65: Overall management of the project | D65: WS7
B66: Governance | C66: Overall project governance | D66: WS7
B67: WS Lead | C67: Leading home trial activity | D67: WS1
B68: Trial designer | C68: Designing trial 1 | D68: WS1
B69: WS Lead | C69: Leading depot trial activity | D69: WS2
B70: Trial designer | C70: Designing trial 2 | D70: WS2
B71: Data Scientist (Blend) | C71: Creating depot planning tool | D71: WS2
B72: SW Engineer | C72: Creating depot planning tool | D72: WS2
B73: Smart equipment SME | C73: Creating depot planning tool | D73: WS2
B74: Planning tool designer | C74: Creating depot planning tool | D74: WS2
B75: Site works (sub-contractor) | C75: Implementing smart depot controller | D75: WS2
B76: IoT Engineer | C76: Implementing smart depot controller | D76: WS2
B77: WS Lead | C77: Leading implementation of trial 3 | D77: WS3
B78: Trial designer | C78: Designing trial 3 | D78: WS3
B79: WS Lead | C79: Leading forecasting & flexibility activity | D79: WS4
B80: WS Lead | C80: Leading business model activity | D80: WS5
B81: Operating model SME | C81: Creating commercial models | D81: WS5
B82: Commercial SME | C82: Creating commercial models | D82: WS5
B83: CBA SME | C83: Creating commercial models | D83: WS5
B84: Behavioural SME | C84: Creating commercial models | D84: WS5
B85: Energy Technology Lead | C85: Overseeing overall project technical direction | D85: WS7
B86: HC Project Management | C86: Supporting home trial | D86: WS1
B87: Centrica Project Management | C87: Planning/implementing home method trial | D87: WS1
B88: REStore | C88: Develop at home charge | D88: WS1
B89: EV delta | C89: Purchase of EV vans & infra | D89: WS1
B90: RM Project Manager/support | C90: Planning/implementing depot method trial | D90: WS2
B91: EV delta | C91: Purchase of EV vans & infra for Depot (cost delta vs diesel) | D91: WS2
B92: Site cost | C92: Preparing sites for trial operation | D92: WS2
B93: Uber Project Management | C93: Set up & manage data exchange/trial 3 | D93: WS3
B94: Platform vehicle data | C94: Data for trial 3 | D94: WS3
B96: Total
D342: Totals

Sheet 2023-2024
B1: Project Costs in 2023-2024
B2: No Project Costs are planned for this period
G4: Total Cost £K | R4: Funding source % | AD4: Licensee Compulsory Contribution/Direct Benefits | AO4: Hitachi Vantara | AZ4: Hitachi Europe | BK4: Hitachi Capital | BV4: Royal Mail | CG4: Centrica | CR4: Uber | DC4: SSEN | DN4: Licensee Extra Contribution | DY4: Outstanding Funding Required
G5: Labour | H5: Equipment | I5: Contractors | J5: IT | K5: IPR Costs | L5: Travel & Expenses | M5: Payments to users | N5: Contingency | O5: Decommissioning | P5: Other | R5: Licensee Compulsory Contribution /Direct Benefits | S5: Hitachi Vantara | T5: Hitachi Europe | U5: Hitachi Capital | V5: Royal Mail | W5: Centrica | X5: Uber | Y5: SSEN | Z5: Licensee Extra Contribution | AA5: Oustanding Funding Required | AB5: Total | AD5: Labour | AE5: Equipment | AF5: Contractors | AG5: IT | AH5: IPR Costs | AI5: Travel & Expenses | AJ5: Payments to users | AK5: Contingency | AL5: Decommissioning | AM5: Other | AO5: Labour | AP5: Equipment | AQ5: Contractors | AR5: IT | AS5: IPR Costs | AT5: Travel & Expenses | AU5: Payments to users | AV5: Contingency | AW5: Decommissioning | AX5: Other | AZ5: Labour | BA5: Equipment | BB5: Contractors | BC5: IT | BD5: IPR Costs | BE5: Travel & Expenses | BF5: Payments to users | BG5: Contingency | BH5: Decommissioning | BI5: Other | BK5: Labour | BL5: Equipment | BM5: Contractors | BN5: IT | BO5: IPR Costs | BP5: Travel & Expenses | BQ5: Payments to users | BR5: Contingency | BS5: Decommissioning | BT5: Other | BV5: Labour | BW5: Equipment | BX5: Contractors | BY5: IT | BZ5: IPR Costs | CA5: Travel & Expenses | CB5: Payments to users | CC5: Contingency | CD5: Decommissioning | CE5: Other | CG5: Labour | CH5: Equipment | CI5: Contractors | CJ5: IT | CK5: IPR Costs | CL5: Travel & Expenses | CM5: Payments to users | CN5: Contingency | CO5: Decommissioning | CP5: Other | CR5: Labour | CS5: Equipment | CT5: Contractors | CU5: IT | CV5: IPR Costs | CW5: Travel & Expenses | CX5: Payments to users | CY5: Contingency | CZ5: Decommissioning | DA5: Other | DC5: Labour | DD5: Equipment | DE5: Contractors | DF5: IT | DG5: IPR Costs | DH5: Travel & Expenses | DI5: Payments to users | DJ5: Contingency | DK5: Decommissioning | DL5: Other | DN5: Labour | DO5: Equipment | DP5: Contractors | DQ5: IT | DR5: IPR Costs | DS5: Travel & Expenses | DT5: Payments to users | DU5: Contingency | DV5: Decommissioning | DW5: Other | DY5: Labour | DZ5: Equipment | EA5: Contractors | EB5: IT | EC5: IPR Costs | ED5: Travel & Expenses | EE5: Payments to users | EF5: Contingency | EG5: Decommissioning | EH5: Other
B6: Description | C6: Task | D6: Project Workstream
AB7: =SUM(R7:AA7) -> 0 | AD7: =$R7*G7 -> 0 | AE7: 0 | AF7: 0 | AG7: 0 | AH7: 0 | AI7: 0 | AJ7: 0 | AK7: 0 | AL7: 0 | AM7: 0 | AO7: =$S7*G7 -> 0 | AP7: 0 | AQ7: 0 | AR7: 0 | AS7: 0 | AT7: 0 | AU7: 0 | AV7: 0 | AW7: 0 | AX7: 0 | AZ7: =$T7*G7 -> 0 | BA7: 0 | BB7: 0 | BC7: 0 | BD7: 0 | BE7: 0 | BF7: 0 | BG7: 0 | BH7: 0 | BI7: 0 | BK7: =$U7*G7 -> 0 | BL7: 0 | BM7: 0 | BN7: 0 | BO7: 0 | BP7: 0 | BQ7: 0 | BR7: 0 | BS7: 0 | BT7: 0 | BV7: =$V7*G7 -> 0 | BW7: =$V7*H7 -> 0 | BX7: 0 | BY7: 0 | BZ7: 0 | CA7: 0 | CB7: 0 | CC7: 0 | CD7: 0 | CE7: 0 | CG7: =$W7*G7 -> 0 | CH7: =$W7*H7 -> 0 | CI7: 0 | CJ7: 0 | CK7: 0 | CL7: 0 | CM7: 0 | CN7: 0 | CO7: 0 | CP7: 0 | CR7: =$X7*G7 -> 0 | CS7: =$X7*H7 -> 0 | CT7: 0 | CU7: 0 | CV7: 0 | CW7: 0 | CX7: 0 | CY7: 0 | CZ7: 0 | DA7: 0 | DC7: =$Y7*G7 -> 0 | DD7: =$Y7*H7 -> 0 | DE7: 0 | DF7: 0 | DG7: 0 | DH7: 0 | DI7: 0 | DJ7: 0 | DK7: 0 | DL7: 0 | DN7: =$Z7*G7 -> 0 | DO7: 0 | DP7: 0 | DQ7: 0 | DR7: 0 | DS7: 0 | DT7: 0 | DU7: 0 | DV7: 0 | DW7: 0 | DY7: =$AA7*G7 -> 0 | DZ7: 0 | EA7: 0 | EB7: 0 | EC7: 0 | ED7: 0 | EE7: 0 | EF7: 0 | EG7: 0 | EH7: 0
Q8: Total Cost | AB8: =SUM(R8:AA8) -> 0 | AD8: 0 | AE8: 0 | AF8: 0 | AG8: 0 | AH8: 0 | AI8: 0 | AJ8: 0 | AK8: 0 | AL8: 0 | AM8: 0 | AO8: 0 | AP8: 0 | AQ8: 0 | AR8: 0 | AS8: 0 | AT8: 0 | AU8: 0 | AV8: 0 | AW8: 0 | AX8: 0 | AZ8: 0 | BA8: 0 | BB8: 0 | BC8: 0 | BD8: 0 | BE8: 0 | BF8: 0 | BG8: 0 | BH8: 0 | BI8: 0 | BK8: 0 | BL8: 0 | BM8: 0 | BN8: 0 | BO8: 0 | BP8: 0 | BQ8: 0 | BR8: 0 | BS8: 0 | BT8: 0 | BV8: =$V8*G8 -> 0 | BW8: =$V8*H8 -> 0 | BX8: =$V8*I8 -> 0 | BY8: =$V8*J8 -> 0 | BZ8: =$V8*K8 -> 0 | CA8: =$V8*L8 -> 0 | CB8: =$V8*M8 -> 0 | CC8: =$V8*N8 -> 0 | CD8: =$V8*O8 -> 0 | CE8: =$V8*P8 -> 0 | CG8: =$W8*G8 -> 0 | CH8: =$W8*H8 -> 0 | CI8: =$W8*I8 -> 0 | CJ8: =$W8*J8 -> 0 | CK8: =$W8*K8 -> 0 | CL8: =$W8*L8 -> 0 | CM8: =$W8*M8 -> 0 | CN8: =$W8*N8 -> 0 | CO8: =$W8*O8 -> 0 | CP8: =$W8*P8 -> 0 | CR8: =$X8*G8 -> 0 | CS8: =$X8*H8 -> 0 | CT8: =$X8*I8 -> 0 | CU8: =$X8*J8 -> 0 | CV8: =$X8*K8 -> 0 | CW8: =$X8*L8 -> 0 | CX8: =$X8*M8 -> 0 | CY8: =$X8*N8 -> 0 | CZ8: =$X8*O8 -> 0 | DA8: =$X8*P8 -> 0 | DC8: =$Y8*G8 -> 0 | DD8: =$Y8*H8 -> 0 | DE8: =$Y8*I8 -> 0 | DF8: =$Y8*J8 -> 0 | DG8: =$Y8*K8 -> 0 | DH8: =$Y8*L8 -> 0 | DI8: =$Y8*M8 -> 0 | DJ8: =$Y8*N8 -> 0 | DK8: =$Y8*O8 -> 0 | DL8: =$Y8*P8 -> 0 | DN8: 0 | DO8: 0 | DP8: 0 | DQ8: 0 | DR8: 0 | DS8: 0 | DT8: 0 | DU8: 0 | DV8: 0 | DW8: 0 | DY8: 0 | DZ8: 0 | EA8: 0 | EB8: 0 | EC8: 0 | ED8: 0 | EE8: 0 | EF8: 0 | EG8: 0 | EH8: 0
B9: Total | G9: =SUM(G7:G8) -> 0 | H9: =SUM(H7:H8) -> 0 | I9: 0 | J9: 0 | K9: 0 | L9: 0 | M9: 0 | N9: 0 | O9: 0 | P9: 0 | Q9: =SUM(G9:P9) -> 0 | AD9: =SUM(AD7:AD8) -> 0 | AE9: =SUM(AE7:AE8) -> 0 | AF9: 0 | AG9: 0 | AH9: 0 | AI9: 0 | AJ9: 0 | AK9: 0 | AL9: 0 | AM9: 0 | AO9: =SUM(AO7:AO8) -> 0 | AP9: =SUM(AP7:AP8) -> 0 | AQ9: 0 | AR9: 0 | AS9: 0 | AT9: 0 | AU9: 0 | AV9: 0 | AW9: 0 | AX9: 0 | AZ9: =SUM(AZ7:AZ8) -> 0 | BA9: =SUM(BA7:BA8) -> 0 | BB9: 0 | BC9: 0 | BD9: 0 | BE9: 0 | BF9: 0 | BG9: 0 | BH9: 0 | BI9: 0 | BK9: =SUM(BK7:BK8) -> 0 | BL9: =SUM(BL7:BL8) -> 0 | BM9: 0 | BN9: 0 | BO9: 0 | BP9: 0 | BQ9: 0 | BR9: 0 | BS9: 0 | BT9: 0 | BV9: =SUM(BV7:BV8) -> 0 | BW9: =SUM(BW7:BW8) -> 0 | BX9: 0 | BY9: 0 | BZ9: 0 | CA9: 0 | CB9: 0 | CC9: 0 | CD9: 0 | CE9: 0 | CG9: =SUM(CG7:CG8) -> 0 | CH9: =SUM(CH7:CH8) -> 0 | CI9: 0 | CJ9: 0 | CK9: 0 | CL9: 0 | CM9: 0 | CN9: 0 | CO9: 0 | CP9: 0 | CR9: =SUM(CR7:CR8) -> 0 | CS9: =SUM(CS7:CS8) -> 0 | CT9: 0 | CU9: 0 | CV9: 0 | CW9: 0 | CX9: 0 | CY9: 0 | CZ9: 0 | DA9: 0 | DC9: =SUM(DC7:DC8) -> 0 | DD9: =SUM(DD7:DD8) -> 0 | DE9: 0 | DF9: 0 | DG9: 0 | DH9: 0 | DI9: 0 | DJ9: 0 | DK9: 0 | DL9: 0 | DN9: =SUM(DN7:DN8) -> 0 | DO9: =SUM(DO7:DO8) -> 0 | DP9: 0 | DQ9: 0 | DR9: 0 | DS9: 0 | DT9: 0 | DU9: 0 | DV9: 0 | DW9: 0 | DY9: =SUM(DY7:DY8) -> 0 | DZ9: =SUM(DZ7:DZ8) -> 0 | EA9: 0 | EB9: 0 | EC9: 0 | ED9: 0 | EE9: 0 | EF9: 0 | EG9: 0 | EH9: 0
D255: Totals

Sheet 2024-2025
B1: Project Costs in 2024-2025
B2: No Project Costs are planned for this period
G4: Total Cost £K | R4: Funding source % | AD4: Licensee Compulsory Contribution/Direct Benefits | AO4: Hitachi Vantara | AZ4: Hitachi Europe | BK4: Hitachi Capital | BV4: Royal Mail | CG4: Centrica | CR4: Uber | DC4: SSEN | DN4: Licensee Extra Contribution | DY4: Outstanding Funding Required
G5: Labour | H5: Equipment | I5: Contractors | J5: IT | K5: IPR Costs | L5: Travel & Expenses | M5: Payments to users | N5: Contingency | O5: Decommissioning | P5: Other | R5: Licensee Compulsory Contribution /Direct Benefits | S5: Hitachi Vantara | T5: Hitachi Europe | U5: Hitachi Capital | V5: Royal Mail | W5: Centrica | X5: Uber | Y5: SSEN | Z5: Licensee Extra Contribution | AA5: Oustanding Funding Required | AB5: Total | AD5: Labour | AE5: Equipment | AF5: Contractors | AG5: IT | AH5: IPR Costs | AI5: Travel & Expenses | AJ5: Payments to users | AK5: Contingency | AL5: Decommissioning | AM5: Other | AO5: Labour | AP5: Equipment | AQ5: Contractors | AR5: IT | AS5: IPR Costs | AT5: Travel & Expenses | AU5: Payments to users | AV5: Contingency | AW5: Decommissioning | AX5: Other | AZ5: Labour | BA5: Equipment | BB5: Contractors | BC5: IT | BD5: IPR Costs | BE5: Travel & Expenses | BF5: Payments to users | BG5: Contingency | BH5: Decommissioning | BI5: Other | BK5: Labour | BL5: Equipment | BM5: Contractors | BN5: IT | BO5: IPR Costs | BP5: Travel & Expenses | BQ5: Payments to users | BR5: Contingency | BS5: Decommissioning | BT5: Other | BV5: Labour | BW5: Equipment | BX5: Contractors | BY5: IT | BZ5: IPR Costs | CA5: Travel & Expenses | CB5: Payments to users | CC5: Contingency | CD5: Decommissioning | CE5: Other | CG5: Labour | CH5: Equipment | CI5: Contractors | CJ5: IT | CK5: IPR Costs | CL5: Travel & Expenses | CM5: Payments to users | CN5: Contingency | CO5: Decommissioning | CP5: Other | CR5: Labour | CS5: Equipment | CT5: Contractors | CU5: IT | CV5: IPR Costs | CW5: Travel & Expenses | CX5: Payments to users | CY5: Contingency | CZ5: Decommissioning | DA5: Other | DC5: Labour | DD5: Equipment | DE5: Contractors | DF5: IT | DG5: IPR Costs | DH5: Travel & Expenses | DI5: Payments to users | DJ5: Contingency | DK5: Decommissioning | DL5: Other | DN5: Labour | DO5: Equipment | DP5: Contractors | DQ5: IT | DR5: IPR Costs | DS5: Travel & Expenses | DT5: Payments to users | DU5: Contingency | DV5: Decommissioning | DW5: Other | DY5: Labour | DZ5: Equipment | EA5: Contractors | EB5: IT | EC5: IPR Costs | ED5: Travel & Expenses | EE5: Payments to users | EF5: Contingency | EG5: Decommissioning | EH5: Other
B6: Description | C6: Task | D6: Project Workstream
AB7: =SUM(R7:AA7) -> 0 | AD7: =$R7*G7 -> 0 | AE7: 0 | AF7: 0 | AG7: 0 | AH7: 0 | AI7: 0 | AJ7: 0 | AK7: 0 | AL7: 0 | AM7: 0 | AO7: =$S7*G7 -> 0 | AP7: 0 | AQ7: 0 | AR7: 0 | AS7: 0 | AT7: 0 | AU7: 0 | AV7: 0 | AW7: 0 | AX7: 0 | AZ7: =$T7*G7 -> 0 | BA7: 0 | BB7: 0 | BC7: 0 | BD7: 0 | BE7: 0 | BF7: 0 | BG7: 0 | BH7: 0 | BI7: 0 | BK7: =$U7*G7 -> 0 | BL7: 0 | BM7: 0 | BN7: 0 | BO7: 0 | BP7: 0 | BQ7: 0 | BR7: 0 | BS7: 0 | BT7: 0 | BV7: =$V7*G7 -> 0 | BW7: =$V7*H7 -> 0 | BX7: 0 | BY7: 0 | BZ7: 0 | CA7: 0 | CB7: 0 | CC7: 0 | CD7: 0 | CE7: 0 | CG7: =$W7*G7 -> 0 | CH7: =$W7*H7 -> 0 | CI7: 0 | CJ7: 0 | CK7: 0 | CL7: 0 | CM7: 0 | CN7: 0 | CO7: 0 | CP7: 0 | CR7: =$X7*G7 -> 0 | CS7: =$X7*H7 -> 0 | CT7: 0 | CU7: 0 | CV7: 0 | CW7: 0 | CX7: 0 | CY7: 0 | CZ7: 0 | DA7: 0 | DC7: =$Y7*G7 -> 0 | DD7: =$Y7*H7 -> 0 | DE7: 0 | DF7: 0 | DG7: 0 | DH7: 0 | DI7: 0 | DJ7: 0 | DK7: 0 | DL7: 0 | DN7: =$Z7*G7 -> 0 | DO7: 0 | DP7: 0 | DQ7: 0 | DR7: 0 | DS7: 0 | DT7: 0 | DU7: 0 | DV7: 0 | DW7: 0 | DY7: =$AA7*G7 -> 0 | DZ7: 0 | EA7: 0 | EB7: 0 | EC7: 0 | ED7: 0 | EE7: 0 | EF7: 0 | EG7: 0 | EH7: 0
Q8: Total Cost | AB8: =SUM(R8:AA8) -> 0 | AD8: 0 | AE8: 0 | AF8: 0 | AG8: 0 | AH8: 0 | AI8: 0 | AJ8: 0 | AK8: 0 | AL8: 0 | AM8: 0 | AO8: 0 | AP8: 0 | AQ8: 0 | AR8: 0 | AS8: 0 | AT8: 0 | AU8: 0 | AV8: 0 | AW8: 0 | AX8: 0 | AZ8: 0 | BA8: 0 | BB8: 0 | BC8: 0 | BD8: 0 | BE8: 0 | BF8: 0 | BG8: 0 | BH8: 0 | BI8: 0 | BK8: 0 | BL8: 0 | BM8: 0 | BN8: 0 | BO8: 0 | BP8: 0 | BQ8: 0 | BR8: 0 | BS8: 0 | BT8: 0 | BV8: =$V8*G8 -> 0 | BW8: =$V8*H8 -> 0 | BX8: =$V8*I8 -> 0 | BY8: =$V8*J8 -> 0 | BZ8: =$V8*K8 -> 0 | CA8: =$V8*L8 -> 0 | CB8: =$V8*M8 -> 0 | CC8: =$V8*N8 -> 0 | CD8: =$V8*O8 -> 0 | CE8: =$V8*P8 -> 0 | CG8: =$W8*G8 -> 0 | CH8: =$W8*H8 -> 0 | CI8: =$W8*I8 -> 0 | CJ8: =$W8*J8 -> 0 | CK8: =$W8*K8 -> 0 | CL8: =$W8*L8 -> 0 | CM8: =$W8*M8 -> 0 | CN8: =$W8*N8 -> 0 | CO8: =$W8*O8 -> 0 | CP8: =$W8*P8 -> 0 | CR8: =$X8*G8 -> 0 | CS8: =$X8*H8 -> 0 | CT8: =$X8*I8 -> 0 | CU8: =$X8*J8 -> 0 | CV8: =$X8*K8 -> 0 | CW8: =$X8*L8 -> 0 | CX8: =$X8*M8 -> 0 | CY8: =$X8*N8 -> 0 | CZ8: =$X8*O8 -> 0 | DA8: =$X8*P8 -> 0 | DC8: =$Y8*G8 -> 0 | DD8: =$Y8*H8 -> 0 | DE8: =$Y8*I8 -> 0 | DF8: =$Y8*J8 -> 0 | DG8: =$Y8*K8 -> 0 | DH8: =$Y8*L8 -> 0 | DI8: =$Y8*M8 -> 0 | DJ8: =$Y8*N8 -> 0 | DK8: =$Y8*O8 -> 0 | DL8: =$Y8*P8 -> 0 | DN8: 0 | DO8: 0 | DP8: 0 | DQ8: 0 | DR8: 0 | DS8: 0 | DT8: 0 | DU8: 0 | DV8: 0 | DW8: 0 | DY8: 0 | DZ8: 0 | EA8: 0 | EB8: 0 | EC8: 0 | ED8: 0 | EE8: 0 | EF8: 0 | EG8: 0 | EH8: 0
B9: Total | G9: =SUM(G7:G8) -> 0 | H9: =SUM(H7:H8) -> 0 | I9: 0 | J9: 0 | K9: 0 | L9: 0 | M9: 0 | N9: 0 | O9: 0 | P9: 0 | Q9: =SUM(G9:P9) -> 0 | AD9: =SUM(AD7:AD8) -> 0 | AE9: =SUM(AE7:AE8) -> 0 | AF9: 0 | AG9: 0 | AH9: 0 | AI9: 0 | AJ9: 0 | AK9: 0 | AL9: 0 | AM9: 0 | AO9: =SUM(AO7:AO8) -> 0 | AP9: =SUM(AP7:AP8) -> 0 | AQ9: 0 | AR9: 0 | AS9: 0 | AT9: 0 | AU9: 0 | AV9: 0 | AW9: 0 | AX9: 0 | AZ9: =SUM(AZ7:AZ8) -> 0 | BA9: =SUM(BA7:BA8) -> 0 | BB9: 0 | BC9: 0 | BD9: 0 | BE9: 0 | BF9: 0 | BG9: 0 | BH9: 0 | BI9: 0 | BK9: =SUM(BK7:BK8) -> 0 | BL9: =SUM(BL7:BL8) -> 0 | BM9: 0 | BN9: 0 | BO9: 0 | BP9: 0 | BQ9: 0 | BR9: 0 | BS9: 0 | BT9: 0 | BV9: =SUM(BV7:BV8) -> 0 | BW9: =SUM(BW7:BW8) -> 0 | BX9: 0 | BY9: 0 | BZ9: 0 | CA9: 0 | CB9: 0 | CC9: 0 | CD9: 0 | CE9: 0 | CG9: =SUM(CG7:CG8) -> 0 | CH9: =SUM(CH7:CH8) -> 0 | CI9: 0 | CJ9: 0 | CK9: 0 | CL9: 0 | CM9: 0 | CN9: 0 | CO9: 0 | CP9: 0 | CR9: =SUM(CR7:CR8) -> 0 | CS9: =SUM(CS7:CS8) -> 0 | CT9: 0 | CU9: 0 | CV9: 0 | CW9: 0 | CX9: 0 | CY9: 0 | CZ9: 0 | DA9: 0 | DC9: =SUM(DC7:DC8) -> 0 | DD9: =SUM(DD7:DD8) -> 0 | DE9: 0 | DF9: 0 | DG9: 0 | DH9: 0 | DI9: 0 | DJ9: 0 | DK9: 0 | DL9: 0 | DN9: =SUM(DN7:DN8) -> 0 | DO9: =SUM(DO7:DO8) -> 0 | DP9: 0 | DQ9: 0 | DR9: 0 | DS9: 0 | DT9: 0 | DU9: 0 | DV9: 0 | DW9: 0 | DY9: =SUM(DY7:DY8) -> 0 | DZ9: =SUM(DZ7:DZ8) -> 0 | EA9: 0 | EB9: 0 | EC9: 0 | ED9: 0 | EE9: 0 | EF9: 0 | EG9: 0 | EH9: 0
D255: Totals

Sheet 2025-2026
B1: Project Costs in 2025-2026
B2: No Project Costs are planned for this period
G4: Total Cost £K | R4: Funding source % | AD4: Licensee Compulsory Contribution/Direct Benefits | AO4: Hitachi Vantara | AZ4: Hitachi Europe | BK4: Hitachi Capital | BV4: Royal Mail | CG4: Centrica | CR4: Uber | DC4: SSEN | DN4: Licensee Extra Contribution | DY4: Outstanding Funding Required
G5: Labour | H5: Equipment | I5: Contractors | J5: IT | K5: IPR Costs | L5: Travel & Expenses | M5: Payments to users | N5: Contingency | O5: Decommissioning | P5: Other | R5: Licensee Compulsory Contribution /Direct Benefits | S5: Hitachi Vantara | T5: Hitachi Europe | U5: Hitachi Capital | V5: Royal Mail | W5: Centrica | X5: Uber | Y5: SSEN | Z5: Licensee Extra Contribution | AA5: Oustanding Funding Required | AB5: Total | AD5: Labour | AE5: Equipment | AF5: Contractors | AG5: IT | AH5: IPR Costs | AI5: Travel & Expenses | AJ5: Payments to users | AK5: Contingency | AL5: Decommissioning | AM5: Other | AO5: Labour | AP5: Equipment | AQ5: Contractors | AR5: IT | AS5: IPR Costs | AT5: Travel & Expenses | AU5: Payments to users | AV5: Contingency | AW5: Decommissioning | AX5: Other | AZ5: Labour | BA5: Equipment | BB5: Contractors | BC5: IT | BD5: IPR Costs | BE5: Travel & Expenses | BF5: Payments to users | BG5: Contingency | BH5: Decommissioning | BI5: Other | BK5: Labour | BL5: Equipment | BM5: Contractors | BN5: IT | BO5: IPR Costs | BP5: Travel & Expenses | BQ5: Payments to users | BR5: Contingency | BS5: Decommissioning | BT5: Other | BV5: Labour | BW5: Equipment | BX5: Contractors | BY5: IT | BZ5: IPR Costs | CA5: Travel & Expenses | CB5: Payments to users | CC5: Contingency | CD5: Decommissioning | CE5: Other | CG5: Labour | CH5: Equipment | CI5: Contractors | CJ5: IT | CK5: IPR Costs | CL5: Travel & Expenses | CM5: Payments to users | CN5: Contingency | CO5: Decommissioning | CP5: Other | CR5: Labour | CS5: Equipment | CT5: Contractors | CU5: IT | CV5: IPR Costs | CW5: Travel & Expenses | CX5: Payments to users | CY5: Contingency | CZ5: Decommissioning | DA5: Other | DC5: Labour | DD5: Equipment | DE5: Contractors | DF5: IT | DG5: IPR Costs | DH5: Travel & Expenses | DI5: Payments to users | DJ5: Contingency | DK5: Decommissioning | DL5: Other | DN5: Labour | DO5: Equipment | DP5: Contractors | DQ5: IT | DR5: IPR Costs | DS5: Travel & Expenses | DT5: Payments to users | DU5: Contingency | DV5: Decommissioning | DW5: Other | DY5: Labour | DZ5: Equipment | EA5: Contractors | EB5: IT | EC5: IPR Costs | ED5: Travel & Expenses | EE5: Payments to users | EF5: Contingency | EG5: Decommissioning | EH5: Other
B6: Description | C6: Task | D6: Project Workstream
AB7: =SUM(R7:AA7) -> 0 | AD7: =$R7*G7 -> 0 | AE7: 0 | AF7: 0 | AG7: 0 | AH7: 0 | AI7: 0 | AJ7: 0 | AK7: 0 | AL7: 0 | AM7: 0 | AO7: =$S7*G7 -> 0 | AP7: 0 | AQ7: 0 | AR7: 0 | AS7: 0 | AT7: 0 | AU7: 0 | AV7: 0 | AW7: 0 | AX7: 0 | AZ7: =$T7*G7 -> 0 | BA7: 0 | BB7: 0 | BC7: 0 | BD7: 0 | BE7: 0 | BF7: 0 | BG7: 0 | BH7: 0 | BI7: 0 | BK7: =$U7*G7 -> 0 | BL7: 0 | BM7: 0 | BN7: 0 | BO7: 0 | BP7: 0 | BQ7: 0 | BR7: 0 | BS7: 0 | BT7: 0 | BV7: =$V7*G7 -> 0 | BW7: =$V7*H7 -> 0 | BX7: 0 | BY7: 0 | BZ7: 0 | CA7: 0 | CB7: 0 | CC7: 0 | CD7: 0 | CE7: 0 | CG7: =$W7*G7 -> 0 | CH7: =$W7*H7 -> 0 | CI7: 0 | CJ7: 0 | CK7: 0 | CL7: 0 | CM7: 0 | CN7: 0 | CO7: 0 | CP7: 0 | CR7: =$X7*G7 -> 0 | CS7: =$X7*H7 -> 0 | CT7: 0 | CU7: 0 | CV7: 0 | CW7: 0 | CX7: 0 | CY7: 0 | CZ7: 0 | DA7: 0 | DC7: =$Y7*G7 -> 0 | DD7: =$Y7*H7 -> 0 | DE7: 0 | DF7: 0 | DG7: 0 | DH7: 0 | DI7: 0 | DJ7: 0 | DK7: 0 | DL7: 0 | DN7: =$Z7*G7 -> 0 | DO7: 0 | DP7: 0 | DQ7: 0 | DR7: 0 | DS7: 0 | DT7: 0 | DU7: 0 | DV7: 0 | DW7: 0 | DY7: =$AA7*G7 -> 0 | DZ7: 0 | EA7: 0 | EB7: 0 | EC7: 0 | ED7: 0 | EE7: 0 | EF7: 0 | EG7: 0 | EH7: 0
Q8: Total Cost | AB8: =SUM(R8:AA8) -> 0 | AD8: 0 | AE8: 0 | AF8: 0 | AG8: 0 | AH8: 0 | AI8: 0 | AJ8: 0 | AK8: 0 | AL8: 0 | AM8: 0 | AO8: 0 | AP8: 0 | AQ8: 0 | AR8: 0 | AS8: 0 | AT8: 0 | AU8: 0 | AV8: 0 | AW8: 0 | AX8: 0 | AZ8: 0 | BA8: 0 | BB8: 0 | BC8: 0 | BD8: 0 | BE8: 0 | BF8: 0 | BG8: 0 | BH8: 0 | BI8: 0 | BK8: 0 | BL8: 0 | BM8: 0 | BN8: 0 | BO8: 0 | BP8: 0 | BQ8: 0 | BR8: 0 | BS8: 0 | BT8: 0 | BV8: =$V8*G8 -> 0 | BW8: =$V8*H8 -> 0 | BX8: =$V8*I8 -> 0 | BY8: =$V8*J8 -> 0 | BZ8: =$V8*K8 -> 0 | CA8: =$V8*L8 -> 0 | CB8: =$V8*M8 -> 0 | CC8: =$V8*N8 -> 0 | CD8: =$V8*O8 -> 0 | CE8: =$V8*P8 -> 0 | CG8: =$W8*G8 -> 0 | CH8: =$W8*H8 -> 0 | CI8: =$W8*I8 -> 0 | CJ8: =$W8*J8 -> 0 | CK8: =$W8*K8 -> 0 | CL8: =$W8*L8 -> 0 | CM8: =$W8*M8 -> 0 | CN8: =$W8*N8 -> 0 | CO8: =$W8*O8 -> 0 | CP8: =$W8*P8 -> 0 | CR8: =$X8*G8 -> 0 | CS8: =$X8*H8 -> 0 | CT8: =$X8*I8 -> 0 | CU8: =$X8*J8 -> 0 | CV8: =$X8*K8 -> 0 | CW8: =$X8*L8 -> 0 | CX8: =$X8*M8 -> 0 | CY8: =$X8*N8 -> 0 | CZ8: =$X8*O8 -> 0 | DA8: =$X8*P8 -> 0 | DC8: =$Y8*G8 -> 0 | DD8: =$Y8*H8 -> 0 | DE8: =$Y8*I8 -> 0 | DF8: =$Y8*J8 -> 0 | DG8: =$Y8*K8 -> 0 | DH8: =$Y8*L8 -> 0 | DI8: =$Y8*M8 -> 0 | DJ8: =$Y8*N8 -> 0 | DK8: =$Y8*O8 -> 0 | DL8: =$Y8*P8 -> 0 | DN8: 0 | DO8: 0 | DP8: 0 | DQ8: 0 | DR8: 0 | DS8: 0 | DT8: 0 | DU8: 0 | DV8: 0 | DW8: 0 | DY8: 0 | DZ8: 0 | EA8: 0 | EB8: 0 | EC8: 0 | ED8: 0 | EE8: 0 | EF8: 0 | EG8: 0 | EH8: 0
B9: Total | G9: =SUM(G7:G8) -> 0 | H9: =SUM(H7:H8) -> 0 | I9: 0 | J9: 0 | K9: 0 | L9: 0 | M9: 0 | N9: 0 | O9: 0 | P9: 0 | Q9: =SUM(G9:P9) -> 0 | AD9: =SUM(AD7:AD8) -> 0 | AE9: =SUM(AE7:AE8) -> 0 | AF9: 0 | AG9: 0 | AH9: 0 | AI9: 0 | AJ9: 0 | AK9: 0 | AL9: 0 | AM9: 0 | AO9: =SUM(AO7:AO8) -> 0 | AP9: =SUM(AP7:AP8) -> 0 | AQ9: 0 | AR9: 0 | AS9: 0 | AT9: 0 | AU9: 0 | AV9: 0 | AW9: 0 | AX9: 0 | AZ9: =SUM(AZ7:AZ8) -> 0 | BA9: =SUM(BA7:BA8) -> 0 | BB9: 0 | BC9: 0 | BD9: 0 | BE9: 0 | BF9: 0 | BG9: 0 | BH9: 0 | BI9: 0 | BK9: =SUM(BK7:BK8) -> 0 | BL9: =SUM(BL7:BL8) -> 0 | BM9: 0 | BN9: 0 | BO9: 0 | BP9: 0 | BQ9: 0 | BR9: 0 | BS9: 0 | BT9: 0 | BV9: =SUM(BV7:BV8) -> 0 | BW9: =SUM(BW7:BW8) -> 0 | BX9: 0 | BY9: 0 | BZ9: 0 | CA9: 0 | CB9: 0 | CC9: 0 | CD9: 0 | CE9: 0 | CG9: =SUM(CG7:CG8) -> 0 | CH9: =SUM(CH7:CH8) -> 0 | CI9: 0 | CJ9: 0 | CK9: 0 | CL9: 0 | CM9: 0 | CN9: 0 | CO9: 0 | CP9: 0 | CR9: =SUM(CR7:CR8) -> 0 | CS9: =SUM(CS7:CS8) -> 0 | CT9: 0 | CU9: 0 | CV9: 0 | CW9: 0 | CX9: 0 | CY9: 0 | CZ9: 0 | DA9: 0 | DC9: =SUM(DC7:DC8) -> 0 | DD9: =SUM(DD7:DD8) -> 0 | DE9: 0 | DF9: 0 | DG9: 0 | DH9: 0 | DI9: 0 | DJ9: 0 | DK9: 0 | DL9: 0 | DN9: =SUM(DN7:DN8) -> 0 | DO9: =SUM(DO7:DO8) -> 0 | DP9: 0 | DQ9: 0 | DR9: 0 | DS9: 0 | DT9: 0 | DU9: 0 | DV9: 0 | DW9: 0 | DY9: =SUM(DY7:DY8) -> 0 | DZ9: =SUM(DZ7:DZ8) -> 0 | EA9: 0 | EB9: 0 | EC9: 0 | ED9: 0 | EE9: 0 | EF9: 0 | EG9: 0 | EH9: 0
D255: Totals

Sheet Whole project
B1: Whole Project
G4: Total Cost £K | R4: Funding source % | AD4: Licensee Compulsory Contribution/Direct Benefits | AO4: Hitachi Vantara | AZ4: Hitachi Europe | BK4: Hitachi Capital | BV4: Royal Mail | CG4: Centrica | CR4: Uber | DC4: SSEN | DN4: Licensee Extra Contribution | DY4: Outstanding Funding Required
G5: Labour | H5: Equipment | I5: Contractors | J5: IT | K5: IPR Costs | L5: Travel & Expenses | M5: Payments to users | N5: Contingency | O5: Decommissioning | P5: Other | R5: Licensee Compulsory Contribution /Direct Benefits | S5: Hitachi Vantara | T5: Hitachi Europe | U5: Hitachi Capital | V5: Royal Mail | W5: Centrica | X5: Uber | Y5: SSEN | Z5: Licensee Extra Contribution | AA5: Oustanding Funding Required | AB5: Total | AD5: Labour | AE5: Equipment | AF5: Contractors | AG5: IT | AH5: IPR Costs | AI5: Travel & Expenses | AJ5: Payments to users | AK5: Contingency | AL5: Decommissioning | AM5: Other | AO5: Labour | AP5: Equipment | AQ5: Contractors | AR5: IT | AS5: IPR Costs | AT5: Travel & Expenses | AU5: Payments to users | AV5: Contingency | AW5: Decommissioning | AX5: Other | AZ5: Labour | BA5: Equipment | BB5: Contractors | BC5: IT | BD5: IPR Costs | BE5: Travel & Expenses | BF5: Payments to users | BG5: Contingency | BH5: Decommissioning | BI5: Other | BK5: Labour | BL5: Equipment | BM5: Contractors | BN5: IT | BO5: IPR Costs | BP5: Travel & Expenses | BQ5: Payments to users | BR5: Contingency | BS5: Decommissioning | BT5: Other | BV5: Labour | BW5: Equipment | BX5: Contractors | BY5: IT | BZ5: IPR Costs | CA5: Travel & Expenses | CB5: Payments to users | CC5: Contingency | CD5: Decommissioning | CE5: Other | CG5: Labour | CH5: Equipment | CI5: Contractors | CJ5: IT | CK5: IPR Costs | CL5: Travel & Expenses | CM5: Payments to users | CN5: Contingency | CO5: Decommissioning | CP5: Other | CR5: Labour | CS5: Equipment | CT5: Contractors | CU5: IT | CV5: IPR Costs | CW5: Travel & Expenses | CX5: Payments to users | CY5: Contingency | CZ5: Decommissioning | DA5: Other | DC5: Labour | DD5: Equipment | DE5: Contractors | DF5: IT | DG5: IPR Costs | DH5: Travel & Expenses | DI5: Payments to users | DJ5: Contingency | DK5: Decommissioning | DL5: Other | DN5: Labour | DO5: Equipment | DP5: Contractors | DQ5: IT | DR5: IPR Costs | DS5: Travel & Expenses | DT5: Payments to users | DU5: Contingency | DV5: Decommissioning | DW5: Other | DY5: Labour | DZ5: Equipment | EA5: Contractors | EB5: IT | EC5: IPR Costs | ED5: Travel & Expenses | EE5: Payments to users | EF5: Contingency | EG5: Decommissioning | EH5: Other
B6: Description | C6: Task | D6: Project Workstream
B7: UKPN Standards Engineer | C7: Home trial | D7: WS1
B8: UKPN Income Management | C8: Home trial | D8: WS1
B9: T&S for FATs etc | C9: Home trial | D9: WS1
B10: UKPN Asset Engineer | C10: Depot trial | D10: WS2
B11: UKPN Connections Designer | C11: Depot trial | D11: WS2
B12: UKPN Customer Relationship Manager | C12: Depot trial | D12: WS2
B13: UKPN Standards Engineer | C13: Depot trial | D13: WS2
B14: UKPN IS resource | C14: Depot trial | D14: WS2
B15: Procurement / support | C15: Depot trial | D15: WS2
B16: Vendor (profiled connections tool) | C16: Depot trial | D16: WS2
B17: Site visits (T&S) | C17: Depot trial | D17: WS2
B18: UKPN Asset Engineer | C18: Mixed trial | D18: WS3
B19: UKPN Connections Designer | C19: Mixed trial | D19: WS3
B20: UKPN Customer Relationship Manager | C20: Mixed trial | D20: WS3
B21: Flexibility payments (WS1) | C21: DSR trialing Home | D21: WS1
B22: Flexibility payments (WS2) | C22: DSR trialing Depot | D22: WS2
B23: ANM/DERMS modification (contractor) | C23: DNO system integration | D23: WS4
B24: Systems integration (contractor) | C24: DNO system integration | D24: WS4
B25: GSA/Netmap mofication (contractor) | C25: DNO system integration | D25: WS4
B26: Cloud service | C26: DNO system integration | D26: WS4
B27: Piclo platform | C27: DNO system integration | D27: WS4
B28: Procurement / support | C28: Procurement | D28: WS4
B29: UKPN DSO Engineer (x 3 - 4 people) | C29: DNO system integration | D29: WS4
B30: UKPN IS architect | C30: DNO system integration | D30: WS4
B31: UKPN IS Project Manager | C31: DNO system integration | D31: WS4
B32: UKPN Control Systems and Automation Engineer | C32: DNO system integration | D32: WS4
B33: UKPN Asset Information engineer | C33: DNO system integration | D33: WS4
B34: UKPN Review | C34: Project review | D34: WS6
B35: Academic partner | C35: External data analysis | D35: WS6
B36: UKPN Data analyst | C36: Data analysis | D36: WS6
B37: Learning events | C37: Dissemination | D37: WS7
B38: LCNI Contribution | C38: Dissemination | D38: WS7
B39: UKPN Project Manager | C39: Project management | D39: WS7
B40: UKPN Project Support (x3 people) | C40: Project management | D40: WS7
B41: UKPN T&S | C41: Project management | D41: WS7
B42: UKPN Comms Lead | C42: Project communications | D42: WS7
B43: UKPN Legal | C43: Legal/contract advice | D43: WS7
B44: UKPN Contingency | C44: n/a | D44: WS7
B45: SSEN Standards Engineer | C45: Home trial | D45: WS1
B46: SSEN Asset Engineer | C46: Depot trial | D46: WS2
B47: SSEN Connections Designer | C47: Depot trial | D47: WS2
B48: SSEN Standards Engineer | C48: Depot trial | D48: WS2
B49: Site visits (T&S) | C49: Project management | D49: WS2
B50: SSEN Review | C50: Project review | D50: WS6
B51: SSEN Project Management | C51: Project Management | D51: WS7
B52: SSEN T&S | C52: Project Management | D52: WS7
B53: Telematics | C53: Vehicle monitoring-trial 1 | D53: WS1
B54: Telematics | C54: Vehicle monitoring-trial 2 | D54: WS2
B55: Data Science WS1 | C55: Home charging DS | D55: WS1
B56: Data Science WS2 | C56: Depot charging DS | D56: WS2
B57: Data Science WS3 | C57: Mixed charging DS | D57: WS3
B58: Data Science WS4 | C58: Flexibility DS | D58: WS4
B59: GSS (Analytics) | C59: Forecasting, flex analysis, data analysis | D59: WS4
B60: Analytics SW and SW Support | C60: Operation of IoT Platform | D60: WS4
B61: HW and SW platform | C61: Operation of IoT Platform | D61: WS4
B62: GSS (IaaS) | C62: Operation of IoT Platform | D62: WS4
B63: WS Lead | C63: Responsible for project reporting | D63: WS6
B64: WS Lead | C64: Leading PMO | D64: WS7
B65: PMO | C65: Overall management of the project | D65: WS7
B66: Governance | C66: Overall project governance | D66: WS7
B67: WS Lead | C67: Leading home trial activity | D67: WS1
B68: Trial designer | C68: Designing trial 1 | D68: WS1
B69: WS Lead | C69: Leading depot trial activity | D69: WS2
B70: Trial designer | C70: Designing trial 2 | D70: WS2
B71: Data Scientist (Blend) | C71: Creating depot planning tool | D71: WS2
B72: SW Engineer | C72: Creating depot planning tool | D72: WS2
B73: Smart equipment SME | C73: Creating depot planning tool | D73: WS2
B74: Planning tool designer | C74: Creating depot planning tool | D74: WS2
B75: Site works (sub-contractor) | C75: Implementing smart depot controller | D75: WS2
B76: IoT Engineer | C76: Implementing smart depot controller | D76: WS2
B77: WS Lead | C77: Leading implementation of trial 3 | D77: WS3
B78: Trial designer | C78: Designing trial 3 | D78: WS3
B79: WS Lead | C79: Leading forecasting & flexibility activity | D79: WS4
B80: WS Lead | C80: Leading business model activity | D80: WS5
B81: Operating model SME | C81: Creating commercial models | D81: WS5
B82: Commercial SME | C82: Creating commercial models | D82: WS5
B83: CBA SME | C83: Creating commercial models | D83: WS5
B84: Behavioural SME | C84: Creating commercial models | D84: WS5
B85: Energy Technology Lead | C85: Overseeing overall project technical direction | D85: WS7
B86: HC Project Management | C86: Supporting home trial | D86: WS3
B87: Centrica Project Management | C87: Planning/implementing home method trial | D87: WS1
B88: REStore | C88: Develop at home charge | D88: WS1
B89: EV delta | C89: Purchase of EV vans & infra | D89: WS1
B90: RM Project Manager/support | C90: Planning/implementing depot method trial | D90: WS2
B91: EV delta | C91: Purchase of EV vans & infra for Depot (cost delta vs diesel) | D91: WS2
B92: Site cost | C92: Preparing sites for trial operation | D92: WS2
B93: Uber Project Management | C93: Set up & manage data exchange/trial 3 | D93: WS3
B94: Platform vehicle data | C94: Data for trial 3 | D94: WS3
B96: Total
D342: Totals

Sheet Project Direction
C4: Cost Category | D4: Cost
C5: Labour
D6: ='Whole project'!DY96+'Whole project'!AD96+'Whole project'!DN96 -> 0
C7: Equipment
D8: ='Whole project'!DZ96+'Whole project'!AE96+'Whole project'!DO96 -> 0
C9: Contractors
D10: ='Whole project'!EA96+'Whole project'!AF96+'Whole project'!DP96 -> 0
C11: IT
D12: ='Whole project'!EB96+'Whole project'!AG96+'Whole project'!DQ96 -> 0
C13: IPR Costs
D14: ='Whole project'!EC96+'Whole project'!AH96+'Whole project'!DR96 -> 0
C15: Travel & Expenses
D16: ='Whole project'!ED96+'Whole project'!AI96+'Whole project'!DS96 -> 0
C17: Payments to users
D18: ='Whole project'!EE96+'Whole project'!AJ96+'Whole project'!DT96 -> 0
C19: Contingency
D20: ='Whole project'!EF96+'Whole project'!AK96+'Whole project'!DU96 -> 0
C21: Decommissioning
D22: ='Whole project'!EG96+'Whole project'!AL96+'Whole project'!DV96 -> 0
C23: Other
D24: ='Whole project'!EH96+'Whole project'!AM96+'Whole project'!DW96 -> 0 | E24: Check that = to Total Outstanding Funding Required + Licensee Compulsory Contribution + Licensee Extra Contribution
C25: Total | D25: =SUM(D6:D24) -> 0 | E25: =IF(D25=('NIC Funding Request'!K79+'NIC Funding Request'!K37+'NIC Funding Request'!K66),"OK", "ERROR") -> ERROR
